{"text_format":"1","workbook":"xlsx","n_sheets":34,"sheets":["список П.Х","П.1","П.2","П.3","П.4","П.5","П.6","П.7","П.8","П.9","П.10","П.11","П.12","П.13","П.14","П.15","П.16","П.17","П.18","П.19","П.20","П.21","П.22","П.23","П.24","П.25","П.26","П.27","П.28","П.29","П.30","П.31","П.32","справочник"],"not_rendered":{"charts":0,"images":0,"macros":1,"external_links":0,"defined_names":1,"comments":0,"pivot_tables":0},"unopened":[],"bounds":{"document_bytes":16777216,"sheet_cells":100000,"rows_first":2000,"rows_last":500,"rows_between":2000,"halvings":0,"cell_chars":16384,"cell_head_chars":4096},"cells_cut":0,"cells_raw":0,"read":"whole","date_system":"1900"}

{"sheet":"список П.Х","index":0,"n_rows":34,"n_cols":6,"rows_kept":34,"cut":false,"hidden":false,"merged":[]}
[]
["Шифр области профессиональной деятельности","Наименование области профессиональной деятельности гражданских служащих",null,null,null,"Выбрать ИОГВ"]
["П.1.","Обеспечение избирательных прав и права на участие в референдуме граждан Российской Федерации",null,null,null,"Все исполнительные органы Камчатского края   "]
["П.2.","Сопровождение парламентской деятельности"]
["П.3.","Обеспечение национальной безопасности и укрепление государственной границы",null,"V"]
["П.4.","Внешнеполитическая, международная и внешнеэкономическая деятельность"]
["П.5.","Обеспечение внутренней безопасности и правоохранительная деятельность",null,"V"]
["П.6.","Внешний государственный аудит (контроль)"]
["П.7.","Управление в сфере юстиции",null,"V"]
["П.8.","Организация судопроизводства"]
["П.9.","Регулирование здравоохранения и санитарно-эпидемиологического благополучия"]
["П.10.","Управление в сфере культуры и национальной политики"]
["П.11.","Регулирование науки и образования, инновационной деятельности и молодежной политики"]
["П.12.","Управление в сфере физической культуры и спорта"]
["П.13.","Управление в сфере природных ресурсов, природопользование и экология"]
["П.14.","Регулирование сельского хозяйства и ветеринарии"]
["П.15.","Регулирование промышленности и энергетики"]
["П.16.","Управление в сфере цифрового развития, информационных технологий, связи, массовых коммуникаций и средств массовой информации",null,"V"]
["П.17.","Регулирование жилищно-коммунального хозяйства и строительства"]
["П.18.","Регулирование транспортного комплекса"]
["П.19.","Регулирование в сфере труда и социального развития",null,"V"]
["П.20.","Регулирование государственной гражданской и муниципальной службы",null,"V"]
["П.21.","Регулирование бюджетной системы",null,"V"]
["П.22.","Регулирование финансовой деятельности и финансовых рынков ",null,"V"]
["П.23.","Регулирование налоговой  деятельности"]
["П.24.","Регулирование таможенной деятельности"]
["П.25.","Регулирование экономики, деятельности хозяйствующих субъектов и предпринимательства",null,"V"]
["П.26.","Регулирование имущественных отношений",null,"V"]
["П.27.","Регулирование земельных отношений, геодезия и картография"]
["П.28.","Управление в сфере государственного материального резерва",null,"V"]
["П.29.","Антимонопольное регулирование",null,"V"]
["П.30.","Государственное ценовое (тарифное) регулирование"]
["П.31.","Регулирование в сфере официального статистического учета"]
["П.32.","Управление в сфере архивного дела и делопроизводства ",null,"V"]

{"sheet":"П.1","index":1,"n_rows":8,"n_cols":14,"rows_kept":8,"cut":false,"hidden":false,"merged":[[1,0,1,9]]}
[null,"<<< Назад"]
["П.1. Обеспечение избирательных прав и права на участие в референдуме граждан Российской Федерации"]
[]
["Шифр вида профессиональной деятельности","Наименование вида профессиональной деятельности гражданских служащих","Наличие в ФГО","Наличие в ГО субъектов РФ","Наименования ФГО","Детализация вида профессиональной деятельности ФГО","Детализация вида профессиональной деятельности ГО субъектов РФ","Наименование ГО КК","Столбец1","Примечание"]
["П.1.1","\n\nОрганизация и проведение выборов, референдума\n\n\n","+","+","ЦИК России",null,null,"Аппарат Избирательной комиссии Камчатского края;\n\nАппараты территориальных избирательных комиссий в Камчатском крае\n\nМинистерство по делам местного самоуправления и развитию Корякского округа Камчатского края;\n",null,null,null,"Аппарат Избирательной комиссии Камчатского края;","Аппараты территориальных избирательных комиссий в Камчатском крае","Министерство по делам местного самоуправления и развитию Корякского округа Камчатского края;"]
["П.1.2","Реализация защиты избирательных прав и права на участие в референдуме граждан ","+","+","ЦИК России",null,null,"Аппарат Избирательной комиссии Камчатского края;\n\nАппараты территориальных избирательных комиссий в Камчатском крае\n",null,null,null,"Аппарат Избирательной комиссии Камчатского края;","Аппараты территориальных избирательных комиссий в Камчатском крае"]
["П.1.3","Контроль финансирования выборов, референдума","\n+","\n+","\nЦИК России",null,"Обеспечение взаимодействия с законодательными (представительными) органами государственной власти, политическими партиями, общественными организациями по вопросам подготовки и проведения выборов","Аппарат Избирательной комиссии Камчатского края;\n\nАппарат Законодательного Собрания Камчатского края;\n\nМинистерство развития гражданского общества и молодежи Камчатского края;\n\n",null,null,null,"Аппарат Избирательной комиссии Камчатского края;","Аппарат Законодательного Собрания Камчатского края;","Министерство развития гражданского общества и молодежи Камчатского края;"]
["П.1.4","\nОбеспечение гарантий равенства парламентских партий \nпри освещении их деятельности государственными общедоступными телеканалами и радиоканалами\n","\n+","\n+","\nЦИК России\n",null,null,"Аппарат Избирательной комиссии Камчатского края;\n\nМинистерство развития гражданского общества и молодежи Камчатского края;\n",null,null,null,"Аппарат Избирательной комиссии Камчатского края;","Министерство развития гражданского общества и молодежи Камчатского края;"]

{"sheet":"П.2","index":2,"n_rows":8,"n_cols":15,"rows_kept":8,"cut":false,"hidden":false,"merged":[[1,0,1,9],[7,0,7,9]]}
[null,"<<< Назад"]
["П.2. Сопровождение парламентской деятельности*"]
[]
["Шифр вида профессиональной деятельности","Наименование вида профессиональной деятельности гражданских служащих","Наличие в ФГО","Наличие в ГО субъектов РФ","Наименования ФГО","Детализация вида профессиональной деятельности ФГО","Детализация вида профессиональной деятельности ГО субъектов РФ","Наименование ГО КК","Столбец1","Примечание"]
["П.2.1","\nСопровождение деятельности сенаторов Российской Федерации, депутатов Государственной Думы Федерального Собрания Российской Федерации и лиц, замещающих государственные должности субъектов Российской Федерации","+","+","Аппарат Совета Федерации Федерального Собрания РФ, Аппарат Государственной Думы Федерального Собрания РФ, аппараты законодательных (представительных) органов государственной власти и иных лиц, замещающих государственные должности\nсубъектов Российской Федерации","Информационно-технологическое обеспечение законодательной деятельности\nКадровое обеспечение законодательной деятельности","Информационно-технологическое обеспечение законодательной деятельности\nКадровое обеспечение законодательной деятельности","Аппарат Законодательного Собрания Камчатского края;\n\nАдминистрация Губернатора Камчатского края (управление информационной политики);\n\nАдминистрация Губернатора Камчатского края (управление секретариата);\n\nАдминистрация Губернатора Камчатского края (управление протокола и внешних связей);",null,null,null,"Аппарат Законодательного Собрания Камчатского края;","Администрация Губернатора Камчатского края (управление информационной политики);","Администрация Губернатора Камчатского края (управление секретариата);","Администрация Губернатора Камчатского края (управление протокола и внешних связей);"]
["П.2.2","Сопровождение законопроектной работы ","+","+",null,"Документационное обеспечение законодательной деятельности\nАналитико-правовое сопровождение законодательного процесса\nЭкспертное сопровождение законодательного процесса\nДокументационное обеспечение законодательной деятельности",null,"Аппарат Законодательного Собрания Камчатского края;\n\nАппарат Губернатора и Правительства Камчатского края (Главное правовое управление);\n\n\n\n",null,{"$f":"IF(M6='список П.Х'!$F$3,\"Сформировать\",IF(N6 ='список П.Х'!$F$3,\"Сформировать\",IF(O6 ='список П.Х'!$F$3,\"Сформировать\",\"\")))","v":""},null,"Аппарат Законодательного Собрания Камчатского края;","Аппарат Губернатора и Правительства Камчатского края (Главное правовое управление);"]
[]
["* Данную область профессиональной служебной деятельности рекомендуется использовать при определнии квалификационных требований для гражданских служащих, осуществляющих сопровождение деятельности руководителя высшего исполнительного органа государственной власти субъекта Российской Федерации, иных должностных лиц и с учетом выполняемого вида профессиональной служебной деятельности."]

{"sheet":"П.3","index":3,"n_rows":23,"n_cols":13,"rows_kept":23,"cut":false,"hidden":false,"merged":[[1,0,1,9]]}
[null,"<<< Назад"]
["П.3. Обеспечение национальной  безопасности и укрепление государственной границы"]
[]
["Шифр вида профессиональной деятельности","Наименование вида профессиональной деятельности гражданских служащих","Наличие в ФГО","Наличие в ГО субъектов РФ","Наименования ФГО","Детализация вида профессиональной деятельности ФГО","Детализация вида профессиональной деятельности ГО субъектов РФ","Наименование ГО КК","Столбец1","Примечание"]
["П.3.1.","Осуществление противодействия иностранным техническим разведкам ","+","-","ФСТЭК России",null,null,null,null,{"$f":"IF(M5='список П.Х'!$F$3,\"Сформировать\",IF(N5 ='список П.Х'!$F$3,\"Сформировать\",IF(O5 ='список П.Х'!$F$3,\"Сформировать\",\"\")))","v":""}]
["П.3.2.","Осуществление технической защиты информации от утечки по техническим каналам ","+","-","ФСТЭК России",null,null,"\n\n\n\n\n\n",null,{"$f":"IF(M6='список П.Х'!$F$3,\"Сформировать\",IF(N6 ='список П.Х'!$F$3,\"Сформировать\",IF(O6 ='список П.Х'!$F$3,\"Сформировать\",\"\")))","v":""}]
["П.3.3.","Осуществление технической защиты информации от несанкционированного доступа ","+","-","ФСТЭК России",null,null,null,null,{"$f":"IF(M7='список П.Х'!$F$3,\"Сформировать\",IF(N7 ='список П.Х'!$F$3,\"Сформировать\",IF(O7 ='список П.Х'!$F$3,\"Сформировать\",\"\")))","v":""}]
["П.3.4.","Обеспечение безопасности критической информационной инфраструктуры Российской Федерации",null,null,null,null,null,"Министерство цифрового развития Камчатского края;",null,{"$f":"IF(M8='список П.Х'!$F$3,\"Сформировать\",IF(N8 ='список П.Х'!$F$3,\"Сформировать\",IF(O8 ='список П.Х'!$F$3,\"Сформировать\",\"\")))","v":""},null,"Министерство цифрового развития Камчатского края;"]
["П.3.5.","Осуществление разрешительного порядка внешнеэкономической деятельности с продукцией, подлежащей экспортному контролю","+","-","ФСТЭК России",null,null,null,null,{"$f":"IF(M9='список П.Х'!$F$3,\"Сформировать\",IF(N9 ='список П.Х'!$F$3,\"Сформировать\",IF(O9 ='список П.Х'!$F$3,\"Сформировать\",\"\")))","v":""}]
["П.3.6.","Осуществление проверок соблюдения участниками внешнеэкономической деятельности законодательства в области экспортного контроля","+","-","ФСТЭК России",null,null,"\n\n",null,{"$f":"IF(M10='список П.Х'!$F$3,\"Сформировать\",IF(N10 ='список П.Х'!$F$3,\"Сформировать\",IF(O10 ='список П.Х'!$F$3,\"Сформировать\",\"\")))","v":""}]
["П.3.7.","Информационно-методическая поддержка деятельности российских хозяйствующих субъектов при осуществлении внешнеэкономических сделок с контролируемой продукцией","+","-","ФСТЭК России",null,null,null,null,{"$f":"IF(M11='список П.Х'!$F$3,\"Сформировать\",IF(N11 ='список П.Х'!$F$3,\"Сформировать\",IF(O11 ='список П.Х'!$F$3,\"Сформировать\",\"\")))","v":""}]
["П.3.8.","Организация межведомственной координации и взаимодействия (рассекречивание документов)","+","+","ФСТЭК России",null,null,"Администрация Губернатора Камчатского края (отдел защиты информации и государственной тайны);\n\nАдминистрация Губернатора Камчатского края (отдел специальной документальной связи);\n",null,{"$f":"IF(M12='список П.Х'!$F$3,\"Сформировать\",IF(N12 ='список П.Х'!$F$3,\"Сформировать\",IF(O12 ='список П.Х'!$F$3,\"Сформировать\",\"\")))","v":""},null,"Администрация Губернатора Камчатского края (отдел защиты информации и государственной тайны);","Администрация Губернатора Камчатского края (отдел специальной документальной связи);"]
["П.3.9.","Организация межведомственной координации и взаимодействия (организационное обеспечение и разработка нормативных документов по защите государственной тайны)","+","+","ФСТЭК России",null,null,"Администрация Губернатора Камчатского края (отдел защиты информации и государственной тайны);",null,{"$f":"IF(M13='список П.Х'!$F$3,\"Сформировать\",IF(N13 ='список П.Х'!$F$3,\"Сформировать\",IF(O13 ='список П.Х'!$F$3,\"Сформировать\",\"\")))","v":""},null,"Администрация Губернатора Камчатского края (отдел защиты информации и государственной тайны);"]
["П.3.10.","Организация межведомственной координации и взаимодействия (обеспечение защиты государственной тайны при осуществлении международного и военно-технического сотрудничества)","+","+","ФСТЭК России",null,null,"Администрация Губернатора Камчатского края (отдел по мобилизационной работе);\n\nАдминистрация Губернатора Камчатского края (отдел защиты информации и государственной тайны);",null,{"$f":"IF(M14='список П.Х'!$F$3,\"Сформировать\",IF(N14 ='список П.Х'!$F$3,\"Сформировать\",IF(O14 ='список П.Х'!$F$3,\"Сформировать\",\"\")))","v":""},null,"Администрация Губернатора Камчатского края (отдел по мобилизационной работе);","Администрация Губернатора Камчатского края (отдел защиты информации и государственной тайны);"]
["П.3.11.","Организация межведомственной координации и взаимодействия (координация деятельности органов государственной власти по защите государственной тайны)","+","+","ФСТЭК России",null,null,"Администрация Губернатора Камчатского края (отдел защиты информации и государственной тайны);\n",null,{"$f":"IF(M15='список П.Х'!$F$3,\"Сформировать\",IF(N15 ='список П.Х'!$F$3,\"Сформировать\",IF(O15 ='список П.Х'!$F$3,\"Сформировать\",\"\")))","v":""},null,"Администрация Губернатора Камчатского края (отдел защиты информации и государственной тайны);"]
["П.3.12.","Регулирование в области военно-технического сотрудничества Российской Федерации с иностранными государствами","+","-","ФСВТС России",null,null,null,null,{"$f":"IF(M16='список П.Х'!$F$3,\"Сформировать\",IF(N16 ='список П.Х'!$F$3,\"Сформировать\",IF(O16 ='список П.Х'!$F$3,\"Сформировать\",\"\")))","v":""}]
["П.3.13.","Организация выполнения, размещения и обеспечения государственного оборонного заказа","+","-","Минобороны России",null,null,null,null,{"$f":"IF(M17='список П.Х'!$F$3,\"Сформировать\",IF(N17 ='список П.Х'!$F$3,\"Сформировать\",IF(O17 ='список П.Х'!$F$3,\"Сформировать\",\"\")))","v":""}]
["П.3.14.","Регулирование деятельности оборонно-промышленного комплекса","+","-","Минпромторг\nРоссии",null,null,null,null,{"$f":"IF(M18='список П.Х'!$F$3,\"Сформировать\",IF(N18 ='список П.Х'!$F$3,\"Сформировать\",IF(O18 ='список П.Х'!$F$3,\"Сформировать\",\"\")))","v":""}]
["П.3.15.","Организация и проведение  мобилизационной подготовки и  мобилизации","+","+","ГУСП ",null,"Обеспечение выполнения мероприятий, связанных с призывом и поступлением на военную службу по контракту","Администрация Губернатора Камчатского края (отдел по мобилизационной работе);\n\nВсе исполнительные органы Камчатского края   \n",null,"*ИО, где есть ответственные за мобилизационную работу ",null,"Администрация Губернатора Камчатского края (отдел по мобилизационной работе);","Все исполнительные органы Камчатского края   "]
["П.3.16.","Содействие укреплению международной безопасности","+","+","МИД России",null,null,"Администрация Губернатора Камчатского края (отдел общественной безопасности);\n",null,{"$f":"IF(M20='список П.Х'!$F$3,\"Сформировать\",IF(N20 ='список П.Х'!$F$3,\"Сформировать\",IF(O20 ='список П.Х'!$F$3,\"Сформировать\",\"\")))","v":""},null,"Администрация Губернатора Камчатского края (отдел общественной безопасности);"]
["П.3.17.","Правовая защита интересов государства в процессе экономического и гражданско-правового оборота результатов научно- исследовательских, опытно-конструкторских и технологических работ военного, специального и двойного назначения","+","-","Роспатент",null,null,"\n\n\n\n\n\n",null,{"$f":"IF(M21='список П.Х'!$F$3,\"Сформировать\",IF(N21 ='список П.Х'!$F$3,\"Сформировать\",IF(O21 ='список П.Х'!$F$3,\"Сформировать\",\"\")))","v":""}]
["П.3.18.","Регулирование в сфере противодействия терроризму и экстремизму",null,null,null,null,null,"Администрация Губернатора Камчатского края (отдел общественной безопасности);\n\nВсе исполнительные органы Камчатского края   \n",null,"**ИО, реализующие мероприятия по противодействию идеологии терроризма",null,"Администрация Губернатора Камчатского края (отдел общественной безопасности);","Все исполнительные органы Камчатского края   "]
["П.3.19.","Администрирование и государственный контроль в сфере государственного оборонного заказа",null,null,"ФАС России",null,null,null,null,{"$f":"IF(M23='список П.Х'!$F$3,\"Сформировать\",IF(N23 ='список П.Х'!$F$3,\"Сформировать\",IF(O23 ='список П.Х'!$F$3,\"Сформировать\",\"\")))","v":""}]

{"sheet":"П.4","index":4,"n_rows":20,"n_cols":13,"rows_kept":20,"cut":false,"hidden":false,"merged":[[1,0,1,9]]}
[null,"<<< Назад"]
["П.4. Внешнеполитическая, международная и внешнеэкономическая деятельность"]
[]
["Шифр вида профессиональной деятельности","Наименование вида профессиональной деятельности гражданских служащих","Наличие в ФГО","Наличие в ГО субъектов РФ","Наименования ФГО","Детализация вида профессиональной деятельности ФГО","Детализация вида профессиональной деятельности ГО субъектов РФ","Наименование ГО КК","Столбец1","Примечание"]
["П.4.1.","Дипломатическая служба",null,null,"МИД России"]
["П.4.2.","Содействие международному развитию, культурно-гуманитарное сотрудничество, укрепление позиций русского языка в мире и организация изучения русского языка за рубежом ","+","-","Россотрудничество","Содействие укреплению позиций русского языка в мире, организация изучения русского языка за рубежом",null,"\n\n\n\n\n\n"]
["П.4.3.","Организация направления на учебу в Российскую Федерацию соотечественников, проживающих за рубежом, и иностранных граждан","+","-","Россотрудничество"]
["П.4.4.","Обеспечение поддержания и развития связей с соотечественниками, проживающими за рубежом, содействие их добровольному переселению","+","-","\nРоссотрудничество"]
["П.4.5.","Разработка и содействие заключению международных договоров, контрактов и соглашений","+","-"," Минфин России,\nРоссотрудничество, Росфинмониторинг\n","Защита финансовых и экономических интересов Российской Федерации при вступлении в международные организации и заключении международных соглашений\nОсуществление кредитно-финансового сотрудничества с иностранными государствами (дебиторами)\nГосударственная регистрация соглашений об осуществлении международных и внешнеэкономических связей "]
["П.4.6.","Регулирование и оказание содействия торгово-экономического и экологического взаимодействия с иностранными государствами\n\n","+","+","\nРоссотрудничество\n","Содействие развитию общественных и деловых связей Российской Федерации с иностранными государствами\nИнформационно-методическая поддержка деятельности российских хозяйствующих субъектов при осуществлении внешнеэкономических сделок с контролируемой продукцией","Регулирование в сфере международного сотрудничества, внешнеэкономических связей по привлечению иностранных инвестиций","Министерство экономического развития Камчатского края;\n\nАдминистрация Губернатора Камчатского края (управление протокола и внешних связей);\n",null,null,null,"Министерство экономического развития Камчатского края;","Администрация Губернатора Камчатского края (управление протокола и внешних связей);"]
["П.4.7.","Обеспечение межпарламентских связей с иностранными государствами","+","-",null,null,null,"\n\n\n\n\n\n"]
["П.4.8.","Обеспечение соответствия проектов законодательных и нормативных правовых актов обязательствам Российской Федерации по международному праву","+","-"]
["П.4.9.","Осуществление совместной деятельности с государственными органами иностранных государств, региональными и международными организациями, форумами","+","-","Росфинмониторинг"]
["П.4.10.","Информационное сопровождение  международной деятельности","+","-","Росфинмониторинг"]
["П.4.11.","Содействие укреплению международного сотрудничества в сфере государственной защиты прав и свобод человека","+","-"]
["П.4.12.","Регулирование внешней торговли","+","-","Минпромторг России",null,null,"\n\n\n\n\n\n"]
["П.4.13.","Реализация конвенционных обязательств","+","-","Минпромторг России"]
["П.4.14.","Обеспечение международной защиты капиталовложений","+","-","Минэкономразвития России "]
["П.4.15.","Обеспечение участия Российской Федерации в международных организациях, многосторонних комиссиях, партнерствах, мероприятиях и других инициативах","+","-","Минфин России"]
["П.4.16.","Регулирование экспортного и импортного контроля ","+","-","ФСВТС России"]

{"sheet":"П.5","index":5,"n_rows":16,"n_cols":13,"rows_kept":16,"cut":false,"hidden":false,"merged":[[1,0,1,9],[15,0,15,9]]}
[null,"<<< Назад"]
["П.5. Обеспечение внутренней безопасности и правоохранительная деятельность"]
[]
["Шифр вида профессиональной деятельности","Наименование вида профессиональной деятельности гражданских служащих","Наличие в ФГО","Наличие в ГО субъектов РФ","Наименования ФГО","Детализация вида профессиональной деятельности ФГО","Детализация вида профессиональной деятельности ГО субъектов РФ","Наименование ГО КК","Столбец1","Примечание"]
["П.5.1.","Защита населения и территорий от чрезвычайных ситуаций природного и техногенного характера*","+","+","МЧС России",null,"Региональный государственный надзор в области защиты населения и территорий от чрезвычайных ситуаций природного и техногенного характера\nРеализация государственной политики и нормативное правовое регулирование в сфере защиты населения и территорий от чрезвычайных ситуаций природного и техногенного характера","Министерство по чрезвычайным ситуациям Камчатского края;",null,null,null,"Министерство по чрезвычайным ситуациям Камчатского края;"]
["П.5.2.","Обеспечение аварийно-спасательной деятельности**","+","+","МЧС России","Организация авиационно-космического поиска и проведение авиационно-спасательных мероприятий\nУправление спасательными станциями и горноспасательными формированиями",null,"Министерство по чрезвычайным ситуациям Камчатского края;\n",null,null,null,"Министерство по чрезвычайным ситуациям Камчатского края;"]
["П.5.3.","Обеспечение безопасности людей на водных объектах ","+","+","МЧС  России","Регулирование в сфере расследования транспортных происшествий",null,"Министерство по чрезвычайным ситуациям Камчатского края;\n",null,null,null,"Министерство по чрезвычайным ситуациям Камчатского края;"]
["П.5.4.","Обеспечение пожарной безопасности ","+","+","МЧС России","Разработка сводных планов тушения лесных пожаров \nРазработка межрегиональных планов маневрирования лесопожарных формирований, пожарной техники и оборудования",null,"Агентство лесного хозяйства Камчатского края;\n\nМинистерство по чрезвычайным ситуациям Камчатского края;\n",null,null,null,"Агентство лесного хозяйства Камчатского края;","Министерство по чрезвычайным ситуациям Камчатского края;"]
["П.5.5.","Обеспечение деятельности по организации охраны общественного порядка и общественной безопасности***","+","+","МВД России","Организационно-методическое обеспечение деятельности по организации охраны общественного порядка и обеспечению общественной безопасности",null,"Администрация Губернатора Камчатского края (отдел общественной безопасности);\n",null,null,null,"Администрация Губернатора Камчатского края (отдел общественной безопасности);"]
["П.5.6."," Обеспечение безопасности дорожного движения","+","-","МВД России"]
["П.5.7.","Реализация государственной политики в сфере миграции","+","+","МВД России",null,null,"Министерство труда и развития кадрового потенциала Камчатского края;\n",null,null,null,"Министерство труда и развития кадрового потенциала Камчатского края;"]
["П.5.8.","Противодействие незаконному обороту наркотических средств, психотропных веществ и их прекурсоров","+","+","МВД России",null,"Региональный лицензионный контроль за деятельностью по обороту наркотических средств, психотропных веществ и их прекурсоров, культивированию наркосодержащих растений\nРеализация государственной политики и осуществление мер, направленных на противодействие незаконному обороту наркотических средств, психотропных веществ и их прекурсоров","Министерство здравоохранения Камчатского края;\n\nАдминистрация Губернатора Камчатского края (отдел общественной безопасности);\n",null,null,null,"Министерство здравоохранения Камчатского края;","Администрация Губернатора Камчатского края (отдел общественной безопасности);"]
["П.5.9.","Организационно-аналитическое обеспечение правоохранительной деятельности",null,null,"МВД России"]
["П.5.10.","Регулирование в сфере приобретения и использования оружия,  частной детективной и охранной деятельности","+",null,"Росгвардия",null,null,"\n\n\n\n"]
["П.5.11.","Организация работы и обеспечение реализации мероприятий по гражданской обороне и защите от чрезвычайных ситуаций","+","+","МЧС России",null,null,"Министерство по чрезвычайным ситуациям Камчатского края;\n\nВсе исполнительные органы Камчатского края   \n",null,"****ИО, где есть ответственные за ГО и ЧС ",null,"Министерство по чрезвычайным ситуациям Камчатского края;","Все исполнительные органы Камчатского края   "]
["*/**/*** В случае, если гражданский служащий осуществляет профессиональную служебную деятельность в сфере гражданской обороны в зависимости от направления мероприятий (защита населения, материальных и культурных ценностей от опасностей, возникающих при военных конфликтах или вследствие этих конфликтов, при чрезвычайных ситуациях природного и техногенного характера), то в должностном регламенте целесообразно указывать виды деятельности П.5.1. «Защита населения и территорий от чрезвычайных ситуаций природного и техногенного характера», П.5.2. «Обеспечение аварийно-спасательной деятельности».\n\nВ случае, если должностные обязанности гражданского служащего, осуществляющего профессиональную служебную деятельность в сфере гражданской обороны связаны с организацией и проведением  мобилизационной подготовки и мобилизации, в должностном регламенте рекомендуется включать область деятельности П.3. «Обеспечение национальной безопасности и укрепление государственной границы» и вид деятельности П.3.14. «Организация и проведение мобилизационной подготовки и  мобилизации»."]

{"sheet":"П.6","index":6,"n_rows":5,"n_cols":12,"rows_kept":5,"cut":false,"hidden":false,"merged":[[1,0,1,9]]}
[null,"<<< Назад"]
["П.6. Внешний государственный аудит (контроль)"]
[]
["Шифр вида профессиональной деятельности","Наименование вида профессиональной деятельности гражданских служащих","Наличие в ФГО","Наличие в ГО субъектов РФ","Наименования ФГО","Детализация вида профессиональной деятельности ФГО","Детализация вида профессиональной деятельности ГО субъектов РФ","Наименование ГО КК","Наименование профессионального стандарта, знания и умения которого рекомендуется использовать при формировании квалификационных требований","Примечание"]
["П.6.1.","Внешний\nгосударственный\nаудит(контроль)","+","+","Счетная палата\nРоссийской\nФедерации","Осуществление внешнего государственного аудита(контроля);\nПроведение экспертизы:\nпроектов федеральных законов о федеральном бюджете и бюджетах государственных внебюджетных фондов Российской Федерации, проектов федеральных законов о внесении изменений в федеральные законы о федеральном бюджете и бюджетах государственных внебюджетных фондов Российской Федерации, проектов федеральных законов и иных нормативных правовых актов в части, касающейся расходных обязательств Российской Федерации, проектов федеральных законов и иных нормативных правовых актов, приводящих к изменению доходов федерального бюджета и бюджетов государственных внебюджетных фондов Российской Федерации, документов стратегического планирования Российской Федерации, государственных программ Российской Федерации, доклада об итогах работы по реализации соглашений о разделе продукции, направленного Государственной Думой;\nмеждународных договоров Российской Федерации, межгосударственных целевых программ, в которых участвует Российская Федерация;\nОпределение достоверности бюджетной отчетности главных администраторов средств федерального бюджета и бюджетов государственных внебюджетных фондов Российской Федерации и годового отчета об исполнении федерального бюджета, бюджетов государственных внебюджетных фондов Российской Федерации;\nРазработка стандартов внешнего государственного аудита (контроля);\nОказание содействия в организации системы внутреннего аудита, методологической и методической помощи при разработке стандартов внутреннего аудита, проверка и анализ эффективности внутреннего аудита, осуществляемого в объектах внешнего государственного аудита (контроля);\nОсуществление производства по делам об административных правонарушениях в порядке, установленном законодательством об административных правонарушениях.",null,"Аппарат Контрольно-счетной палаты Камчатского края;\n","Аудитор",null,null,"Аппарат Контрольно-счетной палаты Камчатского края;"]

{"sheet":"П.7","index":7,"n_rows":23,"n_cols":15,"rows_kept":23,"cut":false,"hidden":false,"merged":[[1,0,1,9]]}
[null,"<<< Назад"]
["П.7. Управление в сфере юстиции"]
[]
["Шифр вида профессиональной деятельности","Наименование вида профессиональной деятельности гражданских служащих","Наличие в ФГО","Наличие в ГО субъектов РФ","Наименования ФГО","Детализация вида профессиональной деятельности ФГО","Детализация вида профессиональной деятельности ГО субъектов РФ","Наименование ГО КК","Столбец1","Примечание"]
["П.7.1.","Государственная регистрация нормативных правовых актов федеральных органов исполнительной власти и иных органов (организаций)","+","+","Минюст России ",null,null,"Администрация Губернатора Камчатского края (Главное правовое управление);\n\nМинистерство цифрового развития Камчатского края;\n",null,null,null,"Администрация Губернатора Камчатского края (Главное правовое управление);","Министерство цифрового развития Камчатского края;"]
["П.7.2.","Координация законопроектной деятельности и взаимодействие с Федеральным Собранием Российской Федерации","+","+",null,null,null,"Аппарат Законодательного Собрания Камчатского края;\n\nАдминистрация Губернатора Камчатского края (Главное правовое управление);\n",null,null,null,"Аппарат Законодательного Собрания Камчатского края;","Администрация Губернатора Камчатского края (Главное правовое управление);"]
["П.7.3.","Деятельность в сфере исполнения уголовных наказаний и судебных актов","+","+"]
["П.7.4.","Деятельность в сфере международного права и сотрудничества","+","+",null,null,null,"Министерство экономического развития Камчатского края;\n\nАдминистрация Губернатора Камчатского края (управление протокола и внешних связей);\n",null,null,null,"Министерство экономического развития Камчатского края;","Администрация Губернатора Камчатского края (управление протокола и внешних связей);"]
["П.7.5.","Деятельность в сфере уголовного и административного законодательства","+","+",null,"Деятельность в сфере уголовного законодательства;\nДеятельность в сфере законодательства об административных правонарушениях и административной ответственности.",null,"Все исполнительные органы Камчатского края   \n",null,"*ИО, осуществляющие функции в рамках КоАП",null,"Все исполнительные органы Камчатского края   "]
["П.7.6.","Деятельность в сфере конституционного законодательства, развития федеративных отношений и местного самоуправления","+","+",null,"Деятельность в сфере законодательства об общественно-политических правах граждан;\nДеятельность в сфере законодательства о федеративных отношениях и местном самоуправлении;\nДеятельность в сфере законодательства о федеральных органах исполнительной власти;\nДеятельность в сфере нормативных правовых актов субъектов Российской Федерация, государственной регистрации уставов муниципальных образований, государственной регистрации соглашений о международных и внешнеэкономических связях субъектов Российской Федерации, ведения государственных реестров уставов муниципальных образований и муниципальных образований Российской Федерации, федеральных регистров нормативных правовых актов субъектов Российской Федерации и муниципальных нормативных правовых актов.",null,"Министерство по делам местного самоуправления и развитию Корякского округа Камчатского края;\n\nМинистерство развития гражданского общества и молодежи Камчатского края;\n\nАдминистрация Губернатора Камчатского края (управление по работе с обращениями граждан);\n\nАдминистрация Губернатора Камчатского края (Главное контрольное управление);",null,null,null,"Министерство по делам местного самоуправления и развитию Корякского округа Камчатского края;","Министерство развития гражданского общества и молодежи Камчатского края;","Администрация Губернатора Камчатского края (управление по работе с обращениями граждан);","Администрация Губернатора Камчатского края (Главное контрольное управление);"]
["П.7.7.","Деятельность в сфере экономического и гражданского законодательства","+","+",null,"Деятельность  в сфере гражданского законодательства;\nДеятельность в сфере земельного, жилищного и градостроительного законодательства;\nДеятельность в сфере законодательства о труде, социальном обеспечении, здравоохранении, образовании, науке и культуре;\nДеятельность в сфере законодательства о государственном регулировании экономики;\nДеятельность в сфере законодательства об энергетике, транспорте, связи и массовых коммуникациях;\nДеятельность в сфере бюджетного законодательства;\nДеятельность в сфере корпоративного и банковского законодательства;\nДеятельность в сфере экологического и природоресурсного законодательства;\nДеятельность в сфере налогового законодательства и законодательства о внешнеэкономической деятельности.",null,"Все исполнительные органы Камчатского края   \n",null,null,null,"Все исполнительные органы Камчатского края   "]
["П.7.8.","Деятельность в сфере некоммерческих организаций","+","+",null,"Деятельность по делам общественных объединений и политических партий;\nДеятельность по по ведению реестров иностранных средств массовой информации, некоммерческих организаций, выполняющих \nфункции иностранного агента, незарегистрированных общественных объединений, выполняющих функции иностранного агента, \nа также списка физических лиц, выполняющих функции иностранного агента;\nДеятельность по делам религиозных организаций;\nДеятельность по ведению реестров и выдаче информации;\nДеятельность по анализу и методическому обеспечению деятельности территориальных органов;\nДеятельность по нормативно-правовому регулированию в сфере некоммерческих организаций.",null,"Министерство развития гражданского общества и молодежи Камчатского края;\n\nВсе исполнительные органы Камчатского края**   \n\n\n\n",null,"**ИО, обеспечивающие государственную поддержку СОНКО",null,"Министерство развития гражданского общества и молодежи Камчатского края;","Все исполнительные органы Камчатского края   "]
["П.7.9.","Деятельность в сфере развития и регулирования юридической помощи и правовых услуг","+","+",null,"Деятельность в сфере адвокатуры;\nДеятельность в сфере бесплатной правовой помощи и правового просвещения;\nДеятельность в сфере нотариата;\nДеятельность в сфере государственной регистрации актов гражданского состояния;\nДеятельность в сфере правового регулирования, анализа и контроля деятельности судебно-экспертных учреждений; \nДеятельность в сфере альтернативного урегулирования споров.","Деятельность в сфере бесплатной правовой помощи и правового просвещения. \nДеятельность в сфере государственной регистрации актов гражданского состояния","Агентство записи актов гражданского состояния и архивного дела Камчатского края;\n\nВсе исполнительные органы Камчатского края   \n",null,null,null,"Агентство записи актов гражданского состояния и архивного дела Камчатского края;","Все исполнительные органы Камчатского края   "]
["П.7.10.","Деятельность в сфере законодательства об обороне, безопасности и судопроизводстве",null,null,null,"Деятельность в сфере законодательства об обороне и безопасности;\nДеятельность в сфере законодательства о правоохранительной деятельности;\nДеятельность в сфере процессуального законодательства;\nДеятельность в сфере законодательства о судоустройстве и общих вопросов судебного процесса.",null,"Администрация Губернатора Камчатского края (Главное правовое управление);\n\nАдминистрация Губернатора Камчатского края (отдел общественной безопасности);\n\nМинистерство по чрезвычайным ситуациям Камчатского края;\n",null,{"$f":"IF(M14='список П.Х'!$F$3,\"Сформировать\",IF(N14 ='список П.Х'!$F$3,\"Сформировать\",IF(O14 ='список П.Х'!$F$3,\"Сформировать\",\"\")))","v":""},null,"Администрация Губернатора Камчатского края (Главное правовое управление);","Администрация Губернатора Камчатского края (отдел общественной безопасности);","Министерство по чрезвычайным ситуациям Камчатского края;"]
["П.7.11.","Деятельность в сфере регуляторной политики и развития законодательства","+","+",null,null,null,"Все исполнительные органы Камчатского края   \n",null,null,null,"Все исполнительные органы Камчатского края   "]
["П.7.14",null,null,null,null,null,null,null,null,{"$f":"IF(M16='список П.Х'!$F$3,\"Сформировать\",IF(N16 ='список П.Х'!$F$3,\"Сформировать\",IF(O16 ='список П.Х'!$F$3,\"Сформировать\",\"\")))","v":""}]
["П.7.15",null,null,null,null,null,null,null,null,{"$f":"IF(M17='список П.Х'!$F$3,\"Сформировать\",IF(N17 ='список П.Х'!$F$3,\"Сформировать\",IF(O17 ='список П.Х'!$F$3,\"Сформировать\",\"\")))","v":""}]
["П.7.16",null,null,null,null,null,null,null,null,{"$f":"IF(M18='список П.Х'!$F$3,\"Сформировать\",IF(N18 ='список П.Х'!$F$3,\"Сформировать\",IF(O18 ='список П.Х'!$F$3,\"Сформировать\",\"\")))","v":""}]
["П.7.17",null,null,null,null,null,null,null,null,{"$f":"IF(M19='список П.Х'!$F$3,\"Сформировать\",IF(N19 ='список П.Х'!$F$3,\"Сформировать\",IF(O19 ='список П.Х'!$F$3,\"Сформировать\",\"\")))","v":""}]
["П.7.18",null,null,null,null,null,null,null,null,{"$f":"IF(M20='список П.Х'!$F$3,\"Сформировать\",IF(N20 ='список П.Х'!$F$3,\"Сформировать\",IF(O20 ='список П.Х'!$F$3,\"Сформировать\",\"\")))","v":""}]
["П.7.19",null,null,null,null,null,null,null,null,{"$f":"IF(M21='список П.Х'!$F$3,\"Сформировать\",IF(N21 ='список П.Х'!$F$3,\"Сформировать\",IF(O21 ='список П.Х'!$F$3,\"Сформировать\",\"\")))","v":""}]
["П.7.20",null,null,null,null,null,null,null,null,{"$f":"IF(M22='список П.Х'!$F$3,\"Сформировать\",IF(N22 ='список П.Х'!$F$3,\"Сформировать\",IF(O22 ='список П.Х'!$F$3,\"Сформировать\",\"\")))","v":""}]
["П.7.21",null,null,null,null,null,null,null,null,{"$f":"IF(M23='список П.Х'!$F$3,\"Сформировать\",IF(N23 ='список П.Х'!$F$3,\"Сформировать\",IF(O23 ='список П.Х'!$F$3,\"Сформировать\",\"\")))","v":""}]

{"sheet":"П.8","index":8,"n_rows":24,"n_cols":12,"rows_kept":24,"cut":false,"hidden":false,"merged":[[1,0,1,9]]}
[null,"<<< Назад"]
["П.8. Организация судопроизводства"]
[]
["Шифр вида профессиональной деятельности","Наименование вида профессиональной деятельности гражданских служащих","Наличие в ФГО","Наличие в ГО субъектов РФ","Наименования ФГО","Детализация вида профессиональной деятельности ФГО","Детализация вида профессиональной деятельности ГО субъектов РФ","Наименование ГО КК","Столбец1","Примечание"]
["П.8.1.","Осуществление рассмотрения в предварительном порядке обращений, направленных на отправление конституционного правосудия","+","-","Конституционный суд Российской Федерации"]
["П.8.2.","Организационное и техническое обеспечение конституционного судопроизводства","+","-","Конституционный суд Российской Федерации"]
["П.8.3.","Научно-аналитическое обеспечение судопроизводства","+","-","Верховный суд Российской Федерации,  Конституционный Суд Российской Федерации"]
["П.8.4.","Организационное обеспечение судопроизводства по экономическим спорам","+","+","Верховный суд Российской Федерации"]
["П.8.5.","Организационное обеспечение судопроизводства по уголовным делам","+","+","Верховный суд Российской Федерации",null,null,"Агентство по обеспечению деятельности мировых судей Камчатского края (аппарат мирового судьи);\n",null,null,null,"Агентство по обеспечению деятельности мировых судей Камчатского края (аппарат мирового судьи);"]
["П.8.6.","Организационное  обеспечение административного судопроизводства","+","+","Верховный суд Российской Федерации",null,null,"Агентство по обеспечению деятельности мировых судей Камчатского края (аппарат мирового судьи);\n",null,null,null,"Агентство по обеспечению деятельности мировых судей Камчатского края (аппарат мирового судьи);"]
["П.8.7.","Организационное обеспечение судопроизводства по делам, подсудным военным судам","+","+","Верховный суд Российской Федерации"]
["П.8.8.","Организационное обеспечение судопроизводства по гражданским делам","+","+","Верховный суд Российской Федерации",null,null,"\nАгентство по обеспечению деятельности мировых судей Камчатского края (аппарат мирового судьи);\n\n\n\n\n\n",null,null,null,"Агентство по обеспечению деятельности мировых судей Камчатского края (аппарат мирового судьи);"]
["П.8.9.","Организационное обеспечение рассмотрения обращений","+","+","Верховный суд Российской Федерации"]
["П.8.10.","Организационное обеспечение судопроизводства по делам, подсудным Дисциплинарной коллегии Верховного Суда Российской Федерации","+","+","Верховный суд Российской Федерации"]
["П.8.11.","Организация принудительного исполнения судебных актов, актов других органов и должностных лиц","+","+","ФССП России"]
["П.8.12.","Организация работы по реализации имущества должников","+","+","ФССП России"]
["П.8.13.","Организация работы по розыску должников, их имущества и розыску детей","+","-","ФССП России"]
["П.8.14.","Организация  дознания","+","-","ФССП России"]
["П.8.15.","Обеспечение и организация деятельности судей, судов и органов судейского сообщества","+","-","                                                    ФССП России\n\n"]
["П.8.16.","Регулирование деятельности по возврату просроченной задолженности",null,null,"                                                    ФССП России\n\n"]
["П.8.17.","Организационно-правовое обеспечение деятельности судов","+","+","Судебный департамент при Верховном суде Российской Федерации\n",null,null,"Агентство по обеспечению деятельности мировых судей Камчатского края (аппарат мирового судьи);\n",null,null,null,"Агентство по обеспечению деятельности мировых судей Камчатского края (аппарат мирового судьи);"]
["П.8.18.","Организация деятельности по социальной защите судей, государственных гражданских служащих и работников судов","+","-","Судебный департамент при Верховном суде Российской Федерации\n"]
["П.8.19.","Организация работы по обеспечению деятельности органов судейского сообщества","+","+","Судебный департамент при Верховном суде Российской Федерации\n",null,null,"\n\n\n\n\n\n"]
["П.8.20.","Способствование восстановлению нарушенных прав","+","+","Аппарат Уполномоченного по правам человека в Российской Федерации","Способствование совершенствованию законодательства Российской Федерации о правах человека и гражданина",null,"Администрация Губернатора Камчатского края (отдел обеспечения деятельности комиссии по делам несовершеннолетних и защите их прав);\n",null,null,null,"Администрация Губернатора Камчатского края (отдел обеспечения деятельности комиссии по делам несовершеннолетних и защите их прав);"]

{"sheet":"П.9","index":9,"n_rows":17,"n_cols":12,"rows_kept":17,"cut":false,"hidden":false,"merged":[[1,0,1,9]]}
[null,"<<< Назад"]
["П.9. Регулирование здравоохранения и санитарно-эпидемиологического благополучия"]
[]
["Шифр вида профессиональной деятельности","Наименование вида профессиональной деятельности гражданских служащих","Наличие в ФГО","Наличие в ГО субъектов РФ","Наименования ФГО","Детализация вида профессиональной деятельности ФГО","Детализация вида профессиональной деятельности ГО субъектов РФ","Наименование ГО КК","Наименование профессионального стандарта, знания и умения которого рекомендуется использовать при формировании квалификационных требований","Примечание"]
["П.9.1.","Регистрация лекарственных препаратов для медицинского применения","+","+","Минздрав России"]
["П.9.2.","Регулирование в сфере обращения медицинских изделий","+","-","Минздрав России, Росздравнадзор",null,null,"\n\n\n\n\n\n"]
["П.9.3.","Организация санаторно-курортного дела","+","-","Минздрав России, Управление делами Президента Российской Федерации  ",null,null,"Министерство образования Камчатского края;*\n\n",null,"*в части организации отдыха и оздоровления детей ",null,"Министерство образования Камчатского края;"]
["П.9.4.","Организация оказания медицинской помощи, медицинских экспертиз и медицинских освидетельствований","+","+","ФМБА России,\n Минздрав России, Управление делами Президента Российской Федерации ","Организация оказания медицинской помощи, включая организацию проведения медицинских осмотров;\nКонтроль качества медицинской помощи;\nОрганизация медицинского обеспечения отдельных видов деятельности и отдельных видов работ во вредных и опасных условиях;\nМетодическое руководство оказанием медицинской помощи отдельным категориям граждан и по отдельным профилям;\nОрганизация медицинских экспертиз и медицинских освидетельствований.\nРегулирование в сфере контроля качества и безопасности медицинской деятельности\nРегулирование в сфере авиационно-космической и водолазной медицины","Организация оказания медицинской помощи и проведения медицинских экспертиз, осмотров и освидетельствований\nОрганизация оказания экстренной медицинской помощи\nМедицинское обеспечение при чрезвычайных ситуациях\nРегиональный ведомственный контроль качества и безопасности медицинской деятельности","Министерство здравоохранения Камчатского края;\n\n\n\n\n\n",null,null,null,"Министерство здравоохранения Камчатского края;"]
["П.9.5.","Организация оказания медицинской помощи при ликвидации чрезвычайных ситуаций и их последствий","+","+","\nФМБА России","Организация оказания медицинской помощи пострадавшим  при  техногенных (радиационных, химических и биологических) и природных  чрезвычайных  ситуациях; \nОрганизация  оказания экстренной и неотложной медицинской помощи, медицинской  сортировки, медицинской  эвакуации, оказания квалифицированной и специализированной медицинской помощи, проведения реабилитационных мероприятий, медицинской экспертизы.\n",null,"Министерство здравоохранения Камчатского края;\n\n\n\n\n",null,null,null,"Министерство здравоохранения Камчатского края;"]
["П.9.6.","Регулирование в сфере обращения донорской крови и (или) ее компонентов","+","+"," ФМБА",null,"Реализация государственной политики в сфере обращения донорской крови и (или) ее компонентов и пропаганды донорства крови и ее компонентов","Министерство здравоохранения Камчатского края;\n\n",null,null,null,"Министерство здравоохранения Камчатского края;"]
["П.9.7.","Предоставление допуска к медицинской деятельности лиц, получивших медицинское и фармацевтическое образование в иностранных государствах","+","-","Росздравнадзор"]
["П.9.8.","Регулирование в сфере организации медицинской экспертизы ","+","+","Росздравнадзор","Регулирование в сфере контроля качества клинических исследований","Организация оказания медицинской помощи и проведения медицинских экспертиз, осмотров и освидетельствований\nРегулирование в сфере контроля качества клинических исследований","Министерство здравоохранения Камчатского края;\n\n",null,null,null,"Министерство здравоохранения Камчатского края;"]
["П.9.9.","Регулирование в сфере качества клинических исследований ","+","+","Росздравнадзор"]
["П.9.10.","Регулирование в сфере обращения лекарственных средств ","+","+","Росздравнадзор",null,null,"Министерство здравоохранения Камчатского края;\n","Специалист по промышленной фармации в области исследований лекарственных средств\nСпециалист по промышленной фармации в области контроля качества лекарственных средств\nСпециалист в области управления фармацевтической деятельностью\nСпециалист по промышленной фармации в области обеспечения качества лекарственных средств",null,null,"Министерство здравоохранения Камчатского края;"]
["П.9.11.","Регулирование в сфере организации качества и безопасности медицинской деятельности ","+","+","Росздравнадзор",null,null,"Министерство здравоохранения Камчатского края;\n",null,null,null,"Министерство здравоохранения Камчатского края;"]
["П.9.12.","Обеспечение эпидемиологического  благополучия населения","+","+","Роспотребнадзор",null,null,"Министерство здравоохранения Камчатского края;\n",null,null,null,"Министерство здравоохранения Камчатского края;"]
["П.9.13.","Обеспечение санитарного благополучия населения","+","+","Роспотребнадзор","Организация и осуществление санитарно-эпидемиологического надзора\nОсуществление деятельности в области использования источников ионизирующего излучения\nОсуществление деятельности в области использования возбудителей инфекционных заболеваний и генно-инженерно-модифицированных организмов","Обеспечение санитарно-эпидемиологического благополучия населения. Региональный государственный контроль за исполнением принятых в соответствии с федеральным законодательством законов и иных нормативных правовых актов субъекта Российской Федерации в области санитарно-эпидемиологического благополучия","Министерство здравоохранения Камчатского края;\n\n",null,null,null,"Министерство здравоохранения Камчатского края;"]

{"sheet":"П.10","index":10,"n_rows":13,"n_cols":13,"rows_kept":13,"cut":false,"hidden":false,"merged":[[1,0,1,9]]}
[null,"<<< Назад"]
["П.10. Управление в сфере культурной и национальной политики"]
[]
["Шифр вида профессиональной деятельности","Наименование вида профессиональной деятельности гражданских служащих","Наличие в ФГО","Наличие в ГО субъектов РФ","Наименования ФГО","Детализация вида профессиональной деятельности ФГО","Детализация вида профессиональной деятельности ГО субъектов РФ","Наименование ГО КК","Наименование профессионального стандарта, знания и умения которого рекомендуется использовать при формировании квалификационных требований","Примечание"]
["П.10.1.","Регулирование в сфере сохранения музейного, библиотечного, архивного и кинофонда Российской Федерации","+","+","Минкультуры России",null,"Реализация государственной политики в области музейного дела\nРеализация государственной политики в сфере библиотечного дела","Министерство культуры Камчатского края;\n\nАгентство записи актов гражданского состояния и архивного дела Камчатского края;\n","Специалист по учету музейных предметов",null,null,"Министерство культуры Камчатского края;","Агентство записи актов гражданского состояния и архивного дела Камчатского края;"]
["П.10.2.","Регулирование в области охраны памятников культуры","+","+","Минкультуры России","Регулирование отношений в области сохранения, использования, популяризации и государственной охраны объектов культурного наследия (памятников истории и культуры) народов Российской Федерации","Регулирование в области сохранения, использования, популяризации и государственной охраны объектов культурного наследия (региональным органом охраны объектов культурного наследия), в том числе в части исполнения полномочий, переданных Российской Федерации в отношении объектов культурного наследия, а также обеспечивающим на территории субъекта Российской Федерации разработку и реализацию государственной охраны объектов культурного наследия","Служба охраны объектов культурного наследия Камчатского края;\n",null,null,null,"Служба охраны объектов культурного наследия Камчатского края;"]
["П.10.3.","Создание условий для развития туризма","+","+","Минкультуры России, Ростуризм ","Регулирование и создание условий для развития внутреннего и международного туризма, обеспечение поддержки крупных туристических проектов\nРегулирование в сфере безопасности туризма\nСодействие продвижению национальных и региональных туристских продуктов на внутреннем и мировом туристских рынках\nРегулирование деятельности туроператоров","Реализация государственной политики в сфере туризма и туристкой деятельности","Министерство туризма Камчатского края;\n",null,null,null,"Министерство туризма Камчатского края;"]
["П.10.4.","Разработка и осуществление мер по укреплению российской гражданской идентичности, межнационального и межрелигиозного согласия, поддержке этнокультурного многообразия народов России","+","+","Минкультуры России\n","Регулирование в сфере защиты культурной самобытности национальных меньшинств, казачьих обществ и коренных малочисленных народов Севера, Сибири и Дальнего Востока\nЭтнокультурное развитие народов Российской Федерации ","Выработка и реализация мер, направленных на сохранение культурной самобытности, культурного и духовно-нравственного потенциала личности. Формирование основных направлений региональной политики. Координация подготовки и проведения празднования памятных и исторических дат, юбилеев городов и субъектов Российской Федерации, видных деятелей культуры.","Министерство культуры Камчатского края;\n\nМинистерство развития гражданского общества и молодежи Камчатского края;\n",null,null,null,"Министерство культуры Камчатского края;","Министерство развития гражданского общества и молодежи Камчатского края;"]
["П.10.5.","Организация и осуществление деятельности, направленной на укрепление общероссийской гражданской идентичности, сохранение этнокультурного многообразия народов России, межнационального (межэтнического) и межрелигиозного согласия","+","+","ФАДН России",null,null,"Министерство развития гражданского общества и молодежи Камчатского края;\n",null,null,null,"Министерство развития гражданского общества и молодежи Камчатского края;"]
["П.10.6.","Осуществление деятельности по социальной и культурной адаптации и интеграции мигрантов",null,null,"ФАДН России",null,null,"Министерство развития гражданского общества и молодежи Камчатского края;\n\nМинистерство труда и развития кадрового потенциала Камчатского края;\n",null,null,null,"Министерство развития гражданского общества и молодежи Камчатского края;","Министерство труда и развития кадрового потенциала Камчатского края;"]
["П.10.7.","Региональное развитие народных художественных промыслов","+","+","Минпромторг России",null,null,"Министерство культуры Камчатского края;\n",null,null,null,"Министерство культуры Камчатского края;"]
["П.10.8.","Регулирование в сфере театрального искусства, концертной деятельности и кинематографии",null,null,null,null,null,"Министерство культуры Камчатского края;\n",null,null,null,"Министерство культуры Камчатского края;"]
["П.10.9.","Регулирование в сфере библиотечного дела, культурно-досуговой деятельности и деятельности парков культуры и отдыха",null,null,null,null,null,"Министерство культуры Камчатского края;\n",null,null,null,"Министерство культуры Камчатского края;"]

{"sheet":"П.11","index":11,"n_rows":12,"n_cols":13,"rows_kept":12,"cut":false,"hidden":false,"merged":[[1,0,1,9]]}
[null,"<<< Назад"]
["П.11. Регулирование науки и образования, инновационной деятельности и молодежной политики"]
[]
["Шифр вида профессиональной деятельности","Наименование вида профессиональной деятельности гражданских служащих","Наличие в ФГО","Наличие в ГО субъектов РФ","Наименования ФГО","Детализация вида профессиональной деятельности ФГО","Детализация вида профессиональной деятельности ГО субъектов РФ","Наименование ГО КК","Наименование профессионального стандарта, знания и умения которого рекомендуется использовать при формировании квалификационных требований","Примечание"]
["П.11.1."," Регулирование научной деятельности и высшего образования","+","-","Минобрнауки России ",null,"Разработка и реализация региональных программ развития образования с учетом региональных социально-экономических, экологических, демографических, этнокультурных и других особенностей субъектов Российской Федерации","Министерство образования Камчатского края;\n\n\n\n\n\n",null,null,null,"Министерство образования Камчатского края;"]
["П.11.2.","Регулирование в сфере подготовки и аттестации научно-педагогических кадров","+","-","Минобрнауки России ",null,"Регулирование в сфере аттестации педагогических работников государственных и муниципальных организаций, осуществляющих образовательную деятельность","Министерство образования Камчатского края;\n\n","Педагог дополнительного образования детей и взрослых\nПедагог профессионального обучения, профессионального образования и дополнительного профессионального образования ",null,null,"Министерство образования Камчатского края;"]
["П.11.3.","Регулирование в сфере общего  образования","+","-"," Минпросвещения  России ","Регулирование в сфере олимпиад школьников\nРегулирование в сфере государственной итоговой аттестации по образовательным программам среднего общего образования\nРегулирование в сфере ЕГЭ\nРегулирование в сфере предоставления психолого-педагогической, медицинской и социальной помощи обучающимся","Регулирование в сфере организации предоставления общего образования в государственных образовательных организациях субъектов Российской Федерации","Министерство образования Камчатского края;\n\n\n","Специалист в области воспитания, Педагог-психолог (психолог в сфере образования), Педагог (педагогическая деятельность в дошкольном, начальном общем, основном общем, среднем общем образовании) (воспитатель, учитель) ",null,null,"Министерство образования Камчатского края;"]
["П.11.4.","Регулирование научной, научно-технической и инновационной деятельности","+","+","Минобрнауки России,\nФАНО России","Определение направлений научного и научно-технологического развития","Реализация государственной политики в сфере научной и научно-технической, инновационной деятельности","Министерство образования Камчатского края;\n\n",null,null,null,"Министерство образования Камчатского края;"]
["П.11.5.","Регулирование в сфере профессионального образования","+","-","Минобрнауки России Минпросвещения России","Регулирование вопросов прохождения практики студентов высших учебных заведений","Регулирование предоставления среднего профессионального образования","Министерство образования Камчатского края;\n\n"," Педагог-психолог (психолог в сфере образования), Педагог профессионального обучения, профессионального образования и дополнительного профессионального образования ",null,null,"Министерство образования Камчатского края;"]
["П.11.6.","Обеспечение соблюдения законодательства в сфере образования","+","+","Рособрнадзор",null,null,"Министерство образования Камчатского края;\n",null,null,null,"Министерство образования Камчатского края;"]
["П.11.7.","Признание образования и (или) квалификации, полученных в иностранном государстве ","+","+","Рособрнадзор,\nРосмолодежь",null,null,"\n\n\n\n\n\n"]
["П.11.8.","Проведение общественных мероприятий в сфере образования и молодежной политики ","+","+","\nМинобрнауки России,  Росмолодежь ","Организационно-методическая и информационная поддержка реализации проектов и программ в части молодежной политики в субъектах Российской Федерации Подготовка и реализация проектов и программ, направленных на поддержку студенческих объединений Организация деятельности по проведению профильных молодежных форумов и конкурсов Развитие международных связей и международного сотрудничества в сфере молодежной политики Развитие системы информационно-методического обеспечения молодежной политики Разработка комплексных программ и мероприятий по развитию сети государственных учреждений в целях обеспечения реализации социальной и творческой активности молодежи Разработка приоритетных направлений государственной поддержки молодежных программ Формирование государственного реестра молодежных и детских объединений, пользующихся государственной поддержкой",null,"Министерство развития гражданского общества и молодежи Камчатского края;\n\nМинистерство образования Камчатского края;\n\n\n\n",null,null,null,"Министерство развития гражданского общества и молодежи Камчатского края;","Министерство образования Камчатского края;"]

{"sheet":"П.12","index":12,"n_rows":9,"n_cols":12,"rows_kept":9,"cut":false,"hidden":false,"merged":[[1,0,1,9]]}
[null,"<<< Назад"]
["П.12. Управление в сфере физической культуры и спорта"]
[]
["Шифр вида профессиональной деятельности","Наименование вида профессиональной деятельности гражданских служащих","Наличие в ФГО","Наличие в ГО субъектов РФ","Наименования ФГО","Детализация вида профессиональной деятельности ФГО","Детализация вида профессиональной деятельности ГО субъектов РФ","Наименование ГО КК","Наименование профессионального стандарта, знания и умения которого рекомендуется использовать при формировании квалификационных требований","Примечание"]
["П.12.1.","Развитие спорта высших достижений","+","+","Минспорт России ",null,"Содействие развитию спорта высших достижений","Министерство спорта Камчатского края;\n",null,null,null,"Министерство спорта Камчатского края;"]
["П.12.2.","Развитие  системы подготовки спортивного резерва","+","+","Минспорт России ",null,"Содействие развитию системы подготовки спортивного резерва ","Министерство спорта Камчатского края;\n",null,null,null,"Министерство спорта Камчатского края;"]
["П.12.3.","Развитие физической культуры и массового спорта, пропаганда здорового образа жизни","+","+","Минспорт России ",null,"Содействие развитию физической культуры и массового спорта и пропаганда здорового образа жизни","Министерство спорта Камчатского края;\n","Руководитель организации (подразделения организации), осуществляющей деятельность в области физической культуры и спорта",null,null,"Министерство спорта Камчатского края;"]
["П.12.4.","Развитие адаптивной физической культуры","+","+","Минспорт России ",null,"Развитие физической культуры и спорта среди инвалидов и лиц с ограниченными возможностями здоровья, адаптивной физической культуры и адаптивного спорта","Министерство спорта Камчатского края;\n","Инструктор-методист по адаптивной физической культуре ",null,null,"Министерство спорта Камчатского края;"]
["П.12.5.","Организация и проведение  физкультурных мероприятий","+","+","Минспорт России ",null,null,"Министерство спорта Камчатского края;\n",null,null,null,"Министерство спорта Камчатского края;"]

{"sheet":"П.13","index":13,"n_rows":21,"n_cols":13,"rows_kept":21,"cut":false,"hidden":false,"merged":[[1,0,1,9]]}
[null,"<<< Назад"]
["П.13. Управление в сфере природных ресурсов, природопользование и экология"]
[]
["Шифр вида профессиональной деятельности","Наименование вида профессиональной деятельности гражданских служащих","Наличие в ФГО","Наличие в ГО субъектов РФ","Наименования ФГО","Детализация вида профессиональной деятельности ФГО","Детализация вида профессиональной деятельности ГО субъектов РФ","Наименование ГО КК","Наименование профессионального стандарта, знания и умения которого рекомендуется использовать при формировании квалификационных требований","Примечание"]
["П.13.1.","Регулирование в сфере метеорологии, сейсмологии и технического развития систем наблюдения ","+","-","Минприроды России\n","Гидрометеорология и техническое развитие систем наблюдения\nРегулирование в области гидрометеорологии и мониторинга окружающей среды\nОрганизация научно-исследовательских и опытно-конструкторских работ в области гидрометеорологии и мониторинга окружающей среды"]
["П.13.2.","Регулирование в сфере недропользования","+","+","Минприроды России,\nРоснедра,\nРосприроднадзор","Регулирование в сфере разведки и разработки месторождений полезных ископаемых\nОбеспечение соблюдения законодательства Российской Федерации в сфере недропользования\nГеология, прикладная геология, горное дело, технология геологической разведки\nОрганизационное обеспечение государственной системы лицензирования пользования недрами\nОрганизация геологического изучения недр\nРазведка и разработка месторождений полезных ископаемых","Регулирование в сфере недропользования\nОбеспечение разведки и разработки месторождений полезных ископаемых","Министерство природных ресурсов и экологии Камчатского края;\n\n","Специалист по промысловой геологии\nСпециалист по подсчету и управлению запасами углеводородов",null,null,"Министерство природных ресурсов и экологии Камчатского края;"]
["П.13.3.","Управление водохозяйственным комплексом, водными ресурсами и объектами ","+","+","\nМинприроды России,\nРосводресурсы","Управление водными объектами, аквакультурой, гидротехническими сооружениями\nРегулирование в сфере охраны водных ресурсов\nОбеспечение безопасности гидротехнических сооружений\nОрганизация проведения научно-исследовательских работ по изучению состояния водных биологических ресурсов\nРегулирование в сфере освоения, воспроизводства, охраны и защиты водных ресурсов\nРегулирование в области водных ресурсов","Государственный мониторинг и учет водных объектов и гидротехнических сооружений\nРазвитие аквакультуры, искусственного воспроизводства водных биологических ресурсов, рыбохозяйственной мелиорации и акклиматизации водных биологических ресурсов","Министерство природных ресурсов и экологии Камчатского края;\n\nМинистерство рыбного хозяйства Камчатского края;\n\n",null,null,null,"Министерство природных ресурсов и экологии Камчатского края;","Министерство рыбного хозяйства Камчатского края;"]
["П.13.4.","Регулирование в сфере охраны водных ресурсов ","+","+","Росводресурсы",null,null,"Министерство природных ресурсов и экологии Камчатского края;\n",null,null,null,"Министерство природных ресурсов и экологии Камчатского края;"]
["П.13.5.","\nРегулирование в сфере  охотничьего \nхозяйства","+","+","Минприроды России","Регулирование в сфере охоты и сохранения охотничьих ресурсов\n","Осуществление федерального государственного охотничьего надзора\nРеализация государственной политики и нормативное правовое регулирование в сфере охоты и сохранения охотничьих ресурсов","Министерство природных ресурсов и экологии Камчатского края;\n",null,null,null,"Министерство природных ресурсов и экологии Камчатского края;"]
["П.13.6.","Регулирование в сфере лесного хозяйства","+","+","Минприроды России","Регулирование в области лесных ресурсов\nРегулирование в сфере освоения, воспроизводства, охраны и защиты лесов, лесного планирования, лесоустроительных работ\nРегулирование вопросов отнесения лесов к эксплуатационным, резервным, защитным лесам, особо защитным участкам лесов, установление и изменение их границ, проектирования лесничеств и лесопарков\nРегулирование в сфере воспроизводства лесов, лесного семеноводства и лесоразведения, формирование и хранение федерального фонда семян лесных растений\nРегулирование вопросов содержания лесных фондов","Осуществление федерального государственного лесного надзора\nВведение государственного лесного реестра","Агентство лесного хозяйства Камчатского края;\n",null,null,null,"Агентство лесного хозяйства Камчатского края;"]
["П.13.7.","Регулирование в области охраны окружающей среды","+","+","Минприроды России,\nРосприроднадзор","Разработка технологических и экологических нормативов производства\nРегулирование в сфере государственного учета объектов и источников негативного воздействия на окружающую среду\nРегулирование в сфере освоения, воспроизводства, охраны и защиты водных ресурсов\nУправление объектами природопользования\nОбеспечение экологической безопасности и регулирование в сфере государственной экологической экспертизы\nОбеспечение экологической безопасности на море и внутренних водных путях, организация проведения работ по предупреждению и ликвидации разливов нефти\nРегулирование в области использования и охраны особо охраняемых природных территорий\nРегулирование в сфере утилизации и переработки отходов\nОрганизация проведения государственной экологической экспертизы\nОсуществление охраны объектов животного и растительного мира, занесенных в Красную книгу Российской Федерации\nОбеспечение соблюдения законодательства Российской Федерации в сфере природопользования\nВыработка и реализация мер, направленных на развитие экологического просвещения, воспитания, образования\nОбеспечение участия Российской Федерации в мероприятиях по вопросам изменения климата и его последствий и охране озонового слоя атмосферы","Организация проведения государственной экологической экспертизы\nРегиональный государственный контроль за использованием и охраной водных объектов\nРеализация государственной политики и нормативное правовое регулирование в области организации, регулирования и охраны водных биологических ресурсов","Министерство природных ресурсов и экологии Камчатского края;\n",null,null,null,"Министерство природных ресурсов и экологии Камчатского края;"]
["П.13.8.","Регулирование в сфере утилизации и переработки отходов","+","+","Росприроднадзор ",null,null,"Министерство жилищно-коммунального хозяйства и энергетики Камчатского края;\n",null,null,null,"Министерство жилищно-коммунального хозяйства и энергетики Камчатского края;"]
["П.13.9.","Использование, охрана и защита лесных ресурсов","+","+","Рослесхоз","Осуществление работ по охране, защите и воспроизводству лесов. Предоставление лесных участков в пользование.",null,"Агентство лесного хозяйства Камчатского края;\n",null,null,null,"Агентство лесного хозяйства Камчатского края;"]
["П.13.10.","Лесное планирование и лесоустройство","+","+","Рослесхоз",null,null,"Агентство лесного хозяйства Камчатского края;\n",null,null,null,"Агентство лесного хозяйства Камчатского края;"]
["П.13.11.","Лесопользование, лесовосстановление и лесное семеноводство","+","+","Рослесхоз",null,null,"Агентство лесного хозяйства Камчатского края;\n",null,null,null,"Агентство лесного хозяйства Камчатского края;"]
["П.13.12.","Осуществление инвентаризации лесов и лесного мониторинга","+","+","Рослесхоз",null,null,"Агентство лесного хозяйства Камчатского края;\n",null,null,null,"Агентство лесного хозяйства Камчатского края;"]
["П.13.13.","Геофизический мониторинг, активные воздействия и государственный надзор","+","-","Росгидромет"]
["П.13.14.","Гидрометеорология и техническое развитие систем наблюдений","+","-","Росгидромет"]
["П.13.15.","Мониторинг загрязнения окружающей среды","+","-","Росгидромет"]
["П.13.16.","Организация научно-исследовательских и опытно-конструкторских работ в области гидрометеорологии и мониторинга окружающей среды","+","-","Росгидромет"]
["П.13.17.","Регулирование в области охраны, воспроизводства и использования объектов животного мира и среды их обитания",null,null,null,null,null,"Министерство природных ресурсов и экологии Камчатского края;\n",null,null,null,"Министерство природных ресурсов и экологии Камчатского края;"]

{"sheet":"П.14","index":14,"n_rows":25,"n_cols":13,"rows_kept":25,"cut":false,"hidden":false,"merged":[[1,0,1,9]]}
[null,"<<< Назад"]
["П.14. Регулирование сельского хозяйства и ветеринарии"]
[]
["Шифр вида профессиональной деятельности","Наименование вида профессиональной деятельности гражданских служащих","Наличие в ФГО","Наличие в ГО субъектов РФ","Наименования ФГО","Детализация вида профессиональной деятельности ФГО","Детализация вида профессиональной деятельности ГО субъектов РФ","Наименование ГО КК","Наименование профессионального стандарта, знания и умения которого рекомендуется использовать при формировании квалификационных требований","Примечание"]
["П14.1.","Регулирование в сфере животноводства","+","+","Минсельхоз России","Осуществление государственной поддержки в сфере животноводства и племенного дела","Выработка и реализация государственной политики, нормативное правовое регулирование в сфере животноводства\nРегиональный государственный надзор в области племенного животноводства","Министерство сельского хозяйства, пищевой и перерабатывающей промышленности Камчатского края;\n\n",null,null,null,"Министерство сельского хозяйства, пищевой и перерабатывающей промышленности Камчатского края;"]
["П14.2.","Регулирование в сфере ветеринарии","+","+","Минсельхоз России ","Организация\nвзаимодействия с ветеринарными (ветеринарно-санитарными) службами\nфедеральных органов исполнительной власти в области обороны, в сфере\nвнутренних дел, в сфере деятельности войск национальной гвардии\nРоссийской Федерации, в сфере исполнения наказаний, в сфере\nгосударственной охраны и в области обеспечения безопасности\nи подведомственными им организациями и осуществление их методического\nруководства\n","Реализация государственной политики и нормативное правое регулирование в сфере ветеринарии","Министерство сельского хозяйства, пищевой и перерабатывающей промышленности Камчатского края;\n","Ветеринарный врач ",null,null,"Министерство сельского хозяйства, пищевой и перерабатывающей промышленности Камчатского края;"]
["П14.3.","Регулирование в сфере сохранения плодородия почв","+","+","Минсельхоз России ","Регулирование в сфере мелиорации земель\nЭксплуатации мелиоративных систем ","Реализация государственной политики и нормативное правовое регулирование в сфере мелиорации земель","Министерство сельского хозяйства, пищевой и перерабатывающей промышленности Камчатского края;\n",null,null,null,"Министерство сельского хозяйства, пищевой и перерабатывающей промышленности Камчатского края;"]
["П14.4.","Регулирование в сфере растениеводства,\nсеменоводства и селекционных достижений","+","+"," Минсельхоз России, Россельхознадзор","Государственная поддержка в области растениеводства,\nвключая семеноводство и организацию сортового и семенного контроля;\nведение реестров в области семеноводства и селекционных достижений","Реализация государственной политики и государственной поддержки сельхозтоваропроизводителей \nВыработка и реализация государственной политики, нормативное правовое регулирование в сфере растениеводства\nРегиональный государственный надзор в области семеноводства","Министерство сельского хозяйства, пищевой и перерабатывающей промышленности Камчатского края;\n","Агроном",null,null,"Министерство сельского хозяйства, пищевой и перерабатывающей промышленности Камчатского края;"]
["П14.5.","Регулирование в сфере безопасного обращения с пестицидами,\nагрохимиками","+","+"," Минсельхоз России","Организация и проведение регистрационных испытаний пестицидов и агрохимикатов; экспертиза результатов регистрационных испытаний пестицидов и агрохимикатов; государственная регистрация пестицидов и агрохимикатов; ведение государственного каталога пестицидов и агрохимикатов и ввоз средств защиты растений (пестицидов)\nи незарегистрированных средств защиты (пестицидов)","Нормативное правовое регулирование в области безопасного обращения с пестицидами и агрохимикатами","Министерство сельского хозяйства, пищевой и перерабатывающей промышленности Камчатского края;\n\n",null,null,null,"Министерство сельского хозяйства, пищевой и перерабатывающей промышленности Камчатского края;"]
["П14.6.","Регулирование в сфере\nобращения лекарственных средств для ветеринарного применения","+","+"," Минсельхоз России,\nРоссельхознадзор ","Регулирование в сфере обращения лекарственных средств для ветеринарного применения",null,"Министерство сельского хозяйства, пищевой и перерабатывающей промышленности Камчатского края;","Ветеринарный врач ",null,null,"Министерство сельского хозяйства, пищевой и перерабатывающей промышленности Камчатского края;"]
["П14.7.","Регулирование в сфере технического оснащения сельского хозяйства",null,null,"Минсельхоз России","Выработка и реализация мер государственной поддержки в сфере технического оснащения сельского хозяйства\nОрганизация работ по определению функциональных характеристик (потребительских свойств) и эффективности сельскохозяйственной техники и оборудования, результаты которых учитываются при оказании государственной поддержки\n","Выработка и реализация региональных мер государственной поддержки технического оснащения сельского хозяйства\n","Министерство сельского хозяйства, пищевой и перерабатывающей промышленности Камчатского края;\n\n\n",null,null,null,"Министерство сельского хозяйства, пищевой и перерабатывающей промышленности Камчатского края;"]
["П14.8.","Обеспечение безопасности сельскохозяйственной продукции","+","+","Россельхознадзор",null,"Выработка и реализация государственной политики, нормативное правовое регулирование в сфере регулирования рынка сельскохозяйственной продукции","Министерство сельского хозяйства, пищевой и перерабатывающей промышленности Камчатского края;\n",null,null,null,"Министерство сельского хозяйства, пищевой и перерабатывающей промышленности Камчатского края;"]
["П14.9.","Государственная регистрация кормовых добавок","+","+"," Россельхознадзор",null,"Обеспечение безопасности продуктов животного и растительного происхождения, кормов и кормовых добавок"]
["П14.10.","Государственная  регистрация кормов, полученных из генно-инженерно-модифицированных организмов","+","+"," Россельхознадзор"]
["П14.11.","Федеральный государственный земельный контроль (надзор) в отношении земель сельскохозяйственного назначения, оборот которых регулируется Федеральным законом «Об обороте земель сельскохозяйственного назначения», виноградопригодных земель","+","+"," Россельхознадзор","Осуществление федерального государственного земельного контроля (надзора) на землях сельскохозяйственного назначения, оборот которых регулируется Федеральным законом \"Об обороте земель сельскохозяйственного назначения», виноградопригодных земель",null,"\n\n\n\n\n\n","Агрохимик-почвовед\nАгроном"]
["П14.12.","Осуществление ветеринарного надзора при внешнеторговых операциях, на транспорте и международного сотрудничества","+","+"," Россельхознадзор","Деятельность, направленная на обеспечение безопасности в ветеринарном отношении продукции, подконтрольной государственному ветеринарному надзору, обеспечение соблюдения ветеринарных (ветеринарно-санитарных) требований, пресечение нарушений требований законодательства Российской Федерации в области ветеринарии, выполнение международных обязательств и соблюдение законодательства государств-импортеров, государств-членов Таможенного союза в области ветеринарии.\nУчастие в процессе оценки соответствия объектов, связанных с выращиванием и содержанием животных, производством, хранением подконтрольных товаров, вывозимых в государства-импортеры, их переработкой, ветеринарно-санитарным требованиям Российской Федерации, ЕАЭС, стран-импортеров.","Осуществление государственного ветеринарного контроля (надзора) в пунктах пропуска через государственную границу Российской Федерации и в местах полного таможенного оформления.\nУчастие в процессе оценки соответствия объектов, связанных с выращиванием и содержанием животных, производством, хранением подконтрольных товаров, вывозимых в государства-импортеры, их переработкой, ветеринарно-санитарным требованиям Российской Федерации, ЕАЭС, стран-импортеров","\n\n\n\n\n\n","Ветеринарный врач\nВетеринарно-санитарный эксперт"]
["П14.13.","Осуществление федерального государственного карантинного фитосанитарного надзора (контроля) ","+","+"," Россельхознадзор","Деятельность, направленная на выявление карантинных объектов в подкарантинной продукции, на подкарантинных объектах, обеспечение соблюдения карантинных фитосанитарных требований, предупреждение и пресечение нарушений требований законодательства Российской Федерации в области карантина растений, выполнение международных обязательств и соблюдение законодательства государств-импортеров, государств - членов Таможенного союза в области карантина растений",null,null,"Агроном"]
["П14.14.","Осуществление федерального государственного контроля (надзора) в области обеспечения качества и безопасности зерна и продуктов переработки зерна",null,null," Россельхознадзор","Осуществление федерального государственного контроля за качеством и безопасностью зерна и продуктов его переработки","Выработка и реализация государственной политики, нормативное правовое регулирование в сфере регулирования рынка сельскохозяйственной продукции",null,"Агроном"]
["П14.15.","Регулирование рыболовства и сохранения водных биоресурсов ","+","+","Росрыболовство","Развитие инфраструктуры рыбохозяйственного комплекса","Выработка и реализация государственной политики, нормативное правовое регулирование в сфере рыболовства, аквакультуры и сохранения водных биологических ресурсов\nПредоставление государственных услуг в сфере рыбного хозяйства","Министерство рыбного хозяйства Камчатского края;\n\nМинистерство природных ресурсов и экологии Камчатского края;\n",null,null,null,"Министерство рыбного хозяйства Камчатского края;","Министерство природных ресурсов и экологии Камчатского края;"]
["П.14.16.","Осуществление федерального государственного ветеринарного контроля (надзора), в пунктах пропуска через государственную границу Российской Федерации ",null,null,"Росрыболовство","Осуществление федерального государственного ветеринарного контроля (надзора) в пунктах пропуска через государственную границу Российской Федерации в пределах своей компетенции",null,"\n\n\n\n\n\n"]
["П.14.17.","Развитие сельских территорий",null,null,null,null,null,"Министерство сельского хозяйства, пищевой и перерабатывающей промышленности Камчатского края;\n\nМинистерство экономического развития Камчатского края;\n",null,null,null,"Министерство сельского хозяйства, пищевой и перерабатывающей промышленности Камчатского края;","Министерство экономического развития Камчатского края;"]
["П.14.18.","Соблюдение требований к содержанию и использованию животных в культурно-зрелищных целях",null,null," Россельхознадзор",null,null,"\n\n\n\n\n\n"]
["П.14.19.","Осуществление федерального государственного контроля (надзора) в области безопасного обращения с пестицидами и агрохимикатами",null,null," Россельхознадзор","Надзор за соблюдением гражданами и юридическими лицами:\n- требований к пестицидам и агрохимикатам при ввозе на территорию Российской Федерации с территорий государств, не являющихся членами Евразийского экономического союза (статус регистрационного свидетельства о государственной регистрации пестицида и (или) агрохимиката, соответствие ввозимых пестицидов и агрохимикатов требованиям действующего регистрационного свидетельства о государственной регистрации пестицида и (или) агрохимиката);\n- регламентов применения пестицидов и агрохимикатов при производстве сельскохозяйственной продукции (за исключением применения пестицидов и агрохимикатов гражданами для ведения личного подсобного хозяйства)",null,null,"Агроном"]
["П.14.20.","Осуществление федерального государственного контроля (надзора) в области семеноводства в отношении семян сельскохозяйственных растений",null,null," Россельхознадзор","Контроль (надзор) за соблюдением гражданами и юридическими лицами обязательных требований: к сортовым и посевным качествам семян сельскохозяйственных растений; к производству, транспортировке и реализации семян сельскохозяйственных растений; к соблюдению запретов, ограничений, связанных с ввозом на территорию Российской Федерации и выращиванием на территории Российской Федерации семян сельскохозяйственных растений (посадочного материала), генетическая программа которых изменена с использованием методов генной инженерии и которые содержат генно-инженерный материал, внесение которого не может являться результатом природных (естественных) процессов."]
["П.14.21.","Осуществление федерального государственного ветеринарного контроля (надзора)",null,null,"Россельхознадзор","Осуществление федерального государственного ветеринарного контроля (надзора)",null,null,"Ветеринарный врач; Ветеринарно-санитарный эксперт"]

{"sheet":"П.15","index":15,"n_rows":41,"n_cols":13,"rows_kept":41,"cut":false,"hidden":false,"merged":[[1,0,1,9]]}
[null,"<<< Назад"]
["П.15. Регулирование промышленности и энергетики"]
[]
["Шифр вида профессиональной деятельности","Наименование вида профессиональной деятельности гражданских служащих","Наличие в ФГО","Наличие в ГО субъектов РФ","Наименования ФГО","Детализация вида профессиональной деятельности ФГО","Детализация вида профессиональной деятельности ГО субъектов РФ","Наименование ГО КК","Наименование профессионального стандарта, знания и умения которого рекомендуется использовать при формировании квалификационных требований","Примечание"]
["П.15.1.","Развитие международных связей в отраслях промышленности","+","+","Минпромторг России ",null,null,"Министерство экономического развития Камчатского края;",null,null,null,"Министерство экономического развития Камчатского края;"]
["П.15.2.","Регулирование в области метрологии ","+","+","Минпромторг России,\nРосстандарт",null,null,"\n\n","Инженер по метрологии в области метрологического обеспечения разработки, производства и испытаний нанотехнологической продукции, \nСпециалист по метрологии "]
["П.15.3.","Регулирование в области технического регулирования и стандартизации","+","+","Минпромторг России,\nРосстандарт"]
["П.15.4.","Федеральный государственный метрологический контроль (надзор), федеральный государственный контроль (надзор) за соблюдением обязательных требований государственных стандартов, требований технических регламентов","+","+","Росстандарт",null,null,null,"Специалист по метрологии"]
["П.15.5.","Регулирование авиационной промышленности ","+","-","Минпромторг России"]
["П.15.6.","Регулирование индустрии детских товаров ","+","-","Минпромторг России"]
["П.15.7.","Регулирование легкой промышленности ","+","+","Минпромторг России",null,"Выработка и реализация государственной политики, нормативное правовое регулирование в сфере легкой промышленности","Министерство экономического развития Камчатского края;\n",null,null,null,"Министерство экономического развития Камчатского края;"]
["П.15.8.","Регулирование химической промышленности ","+","+","Минпромторг России",null,"Выработка и реализация государственной политики в сфере производства резиновых и пластмассовых изделий","Министерство экономического развития Камчатского края;",null,null,null,"Министерство экономического развития Камчатского края;"]
["П.15.9.","Регулирование лесопромышленного комплекса ","+","+","Минпромторг России",null,"Выработка и реализация государственной политики, нормативное правовое регулирование  в сфере лесной и лесоперерабатывающей промышленности","Агентство лесного хозяйства Камчатского края;\n",null,null,null,"Агентство лесного хозяйства Камчатского края;"]
["П.15.10.","Регулирование фармацевтической промышленности ","+","+","Минпромторг России",null,"Выработка и реализация государственной политики в сфере фармацевтической промышленности и внедрения биотехнологий","Министерство здравоохранения Камчатского края;\n",null,null,null,"Министерство здравоохранения Камчатского края;"]
["П.15.11.","Регулирование медицинской промышленности ","+","-","Минпромторг России"]
["П.15.12.","Регулирование металлургии ","+","+","Минпромторг России",null,"Выработка и реализация государственной политики в сфере металлургии и металлообработки\nРегиональный лицензионный контроль за деятельностью по заготовке, хранению, переработке и реализации лома черных и цветных металлов","Министерство экономического развития Камчатского края;\n",null,null,null,"Министерство экономического развития Камчатского края;"]
["П.15.13.","Регулирование тяжелого машиностроения \n","+","+","Минпромторг России",null,"Выработка и реализация государственной политики, нормативное правовое регулирование в сфере машиностроения"]
["П.15.14.","Регулирование радиоэлектронной промышленности ","+","-","Минпромторг России",null,"Регулирование в сфере производства электрооборудования, электронного и оптического оборудования, транспортных средств."]
["П.15.15.","Регулирование судостроительной промышленности и морской техники   ","+","+","Минпромторг России",null,"Выработка и реализация государственной политики, нормативное правовое регулирование в сфере судостроительной промышленности","\n\n\n\n\n\n"]
["П.15.16.","Регулирование транспортного и специального машиностроения ","+","-","Минпромторг России"]
["П.15.17.","Регулирование  промышленности\nобычных вооружений, боеприпасов и спецхимии\n","+","-","Минпромторг России","Регулирование в сфере безопасности производства, хранения и применения взрывчатых материалов промышленного назначения"]
["П.15.18.","Регулирование в сфере производства продукции реабилитационной направленности, спортивных товаров и инвентаря","+","-","Минпромторг России"]
["П.15.19.","Регулирование в сфере промышленной безопасности подъемных сооружений и оборудования, работающего под избыточным давлением","+","+","Ростехнадзор"]
["П.15.20.","Регулирование в сфере промышленной безопасности горнорудной, угольной и металлургической промышленности","+","+","Ростехнадзор"]
["П.15.21.","Регулирование в сфере промышленной безопасности взрывопожароопасных объектов хранения и переработки растительного сырья","+","+","Ростехнадзор"]
["П.15.22.","Регулирование в сфере промышленной безопасности предприятий химического и оборонно-промышленного комплекса, транспортирования опасных веществ","+","+","Ростехнадзор"]
["П.15.23.","Регулирование в сфере промышленной безопасности объектов нефтегазового комплекса","+","+","Ростехнадзор"]
["П.15.24.","Регулирование в сфере безопасности электротехнических и тепловых установок и сетей","+","+","Ростехнадзор",null,null,"Министерство жилищно-коммунального хозяйства и энергетики Камчатского края;\n",null,null,null,"Министерство жилищно-коммунального хозяйства и энергетики Камчатского края;"]
["П.15.25.","Регулирование в сфере безопасности гидротехнических сооружений","+","+","Ростехнадзор",null,null,"Министерство природных ресурсов и экологии Камчатского края;\n",null,null,null,"Министерство природных ресурсов и экологии Камчатского края;"]
["П.15.26.","Регулирование в сфере безопасности при использовании атомной энергии","+","+","Ростехнадзор",null,null,"Министерство по чрезвычайным ситуациям Камчатского края;","Специалист по экологической безопасности (в промышленности), \nСпециалист в области учета и контроля ядерных материалов в области атомной энергетики",null,null,"Министерство по чрезвычайным ситуациям Камчатского края;"]
["П.15.27.","Инвестиционное планирование и реализация инвестиционных программ в электроэнергетике ","+","+","Минэнерго России ",null,null,"Министерство жилищно-коммунального хозяйства и энергетики Камчатского края;\n\nРегиональная служба по тарифам и ценам Камчатского края;\n",null,null,null,"Министерство жилищно-коммунального хозяйства и энергетики Камчатского края;","Региональная служба по тарифам и ценам Камчатского края;"]
["П.15.28.","Регулирование в сфере электроэнергетики и ТЭК","+","+","Минэнерго России ",null,null,"Министерство жилищно-коммунального хозяйства и энергетики Камчатского края;\n",null,null,null,"Министерство жилищно-коммунального хозяйства и энергетики Камчатского края;"]
["П.15.29.","Регулирование в области переработки нефти и газа  ","+","+","Минэнерго России ",null,null,null,"Специалист по химической переработке нефти и газа"]
["П.15.30.","Регулирование в области добычи и транспортировки нефти и газа","+","+","Минэнерго России ",null,null,"Министерство жилищно-коммунального хозяйства и энергетики Камчатского края;\n","Специалист по транспортировке по трубопроводам газа\nСпециалист по эксплуатации газотранспортного оборудования\nСпециалист по эксплуатации газораспределительных станций\nСпециалист по оперативно-диспетчерскому управлению нефтегазовой отрасли\nСпециалист по приему, хранению и отгрузке нефти и нефтепродуктов\nСпециалист по эксплуатации нефтепродуктоперекачивающей станции магистрального трубопровода нефти и нефтепродуктов\nСпециалист по добыче нефти, газа и газового конденсата",null,null,"Министерство жилищно-коммунального хозяйства и энергетики Камчатского края;"]
["П.15.31.","Регулирование угольной и торфяной промышленности  ","+","+","Минэнерго России "]
["П.15.32.","Организация мероприятий по созданию и функционированию энергетической инфраструктуры в субъектах Российской Федерации ","+","+","Минэнерго России ",null,null,"Министерство жилищно-коммунального хозяйства и энергетики Камчатского края;\n",null,null,null,"Министерство жилищно-коммунального хозяйства и энергетики Камчатского края;"]
["П.15.33.","Контроль за обеспечением эксплуатации, развития и безопасности объектов ТЭК ","+","+","Минэнерго России ",null,null,"Министерство жилищно-коммунального хозяйства и энергетики Камчатского края;\n",null,null,null,"Министерство жилищно-коммунального хозяйства и энергетики Камчатского края;"]
["П.15.34.","Регулирование производства и оборота этилового спирта, алкогольной и спиртосодержащей продукции","+","+","Росалкогольрегулирование","Регулирование в сфере производства и оборота этилового спирта, алкогольной и спиртосодержащей продукции в части ограничения потребления (распития) алкогольной продукции\nВедение единой государственной автоматизированной информационной системы учета объема производства и оборота этилового спирта, алкогольной и спиртосодержащей продукции и выдача федеральных специальных марок для маркировки алкогольной продукции\nВедение федерального реестра алкогольной продукции и осуществление научной деятельности в сфере производства и оборота этилового спирта, алкогольной и спиртосодержащей продукции\nОбеспечение соблюдения предоставления деклараций об объемах производства и оборота этилового спирта, алкогольной и спиртосодержащей продукции\nОбеспечение организации переработки и уничтожения изъятых из незаконного оборота этилового спирта, алкогольной и спиртосодержащей продукции","Контроль (надзор) в сфере производства и оборота этилового спирта, алкогольной и спиртосодержащей продукции\nРегиональный лицензионный контроль за розничной продажей алкогольной продукции\nРеализация государственной политики и нормативное правое регулирование в сфере производства и оборота этилового спирта, алкогольной и спиртосодержащей продукции","Министерство экономического развития Камчатского края;\n\n\n\n\n\n",null,null,null,"Министерство экономического развития Камчатского края;"]
["П.15.35.","\nРегулирование в сфере производства, переработки и обращения драгоценных металлов и драгоценных камней","+","+","Минфин России","Регулирование в сфере обращения драгоценных металлов и драгоценных камней\nКорпоративные отношения в отрасли драгоценных металлов и драгоценных камней","Мониторинг и технико-экономический анализ отрасли драгоценных металлов и драгоценных камней","\n\n\n\n\n\n"]
["П.15.36.","Регулирование пищевой и перерабатывающей промышленности","+","+","Минсельхоз России",null,null,"Министерство сельского хозяйства, пищевой и перерабатывающей промышленности Камчатского края;\n\n\n\n\n\n",null,null,null,"Министерство сельского хозяйства, пищевой и перерабатывающей промышленности Камчатского края;"]
["П.15.37.","Регулирование в области обеспечения безопасной эксплуатации самоходных машин и других видов техники",null,null,"Минсельхоз России","Регулирование и координация осуществления государственного надзора за техническим состоянием самоходных машин и других видов техники\n","Осуществление регионального государственного надзора за техническим состоянием самоходных машин и других видов техники","Министерство транспорта и дорожного строительства Камчатского края;\n",null,null,null,"Министерство транспорта и дорожного строительства Камчатского края;"]

{"sheet":"П.16","index":16,"n_rows":15,"n_cols":14,"rows_kept":15,"cut":false,"hidden":false,"merged":[[1,0,1,9]]}
[null,"<<< Назад"]
["П.16. Управление в сфере цифрового развития, информационных технологий, связи, массовых коммуникаций и средств массовой информации"]
[]
["Шифр вида профессиональной деятельности","Наименование вида профессиональной деятельности гражданских служащих","Наличие в ФГО","Наличие в ГО субъектов РФ","Наименования ФГО","Детализация вида профессиональной деятельности ФГО","Детализация вида профессиональной деятельности ГО субъектов РФ","Наименование ГО КК","Наименование профессионального стандарта, знания и умения которого рекомендуется использовать при формировании квалификационных требований","Примечание"]
["П.16.1.","Регулирование в области информационных технологий","+","+","Минцифры России, \nРоскомнадзор","Регулирование в сфере информационных технологий в части:\n- развития отрасли информационных технологий, включая улучшение условий ведения бизнеса в отрасли;\n- координация проектов по инновационному развитию отрасли информационных технологий, включая импортозамещение, в том числе вопросы создания и внедрения национальных информационных систем и сетей связи;\n- создания и развития технопарков в сфере высоких технологий;\n- развитие человеческого капитала в сфере информационных технологий, включая подготовку кадров, популяризацию профессий в сфере информационных технологий среди школьников и студентов;\n- осуществление государственной аккредитации ИТ-компаний;\n- формирование единого реестра российских программ  для электронных вычислительных машин и баз данных;\n- регулирования информационно-телекоммуникационных технологий сети \"Интернет\"","Развитие информационных технологий на уровне субъектов, включая улучшение условий ведения бизнеса;\nКоординация проектов по инновационному развитию отрасли информационных технологий в субъектах, включая импортозамещение, в том числе вопросы создания и внедрения национальных информационных систем и сетей связи.\nСоздание и развития технопарков в сфере высоких технологий в субъектах.\nРазвитие человеческого капитала в сфере информационных технологий, включая подготовку кадров.","Министерство цифрового развития Камчатского края;\n\n\n\n\n\n",null,null,null,"Министерство цифрового развития Камчатского края;"]
["П.16.2.","Регулирование в сфере обеспечения информационной и сетевой безопасности","+","+","Минцифры России,\nМВД России,\nРоскомнадзор","Обеспечения информационной и сетевой безопасности, включая установление требований по информационных безопасности информационных систем (за исключением информационных систем критически важных объектов), информационно-телекоммуникационных сетей и других сетей связи;                                                                                                - мониторинг правоприменительной практики и участие в обеспечении защиты от несанкционированного использования информационных систем и сетей связи; \n- сертификация средств защиты информации и аттестация объектов информатизации;\n- регулирования вопросов, связанных с обработкой и защитой персональных данных.","Обеспечение информационной безопасности\n","Министерство цифрового развития Камчатского края;\n\nАдминистрация Губернатора Камчатского края (отдел защиты информации и государственной тайны);\n\nАдминистрация Губернатора Камчатского края (отдел специальной документальной связи);\n\n","Специалист по защите информации в телекоммуникационных системах и сетях,\nСпециалист по безопасности компьютерных систем и сетей,\nСпециалист по защите информации в автоматизированных системах ",null,null,"Министерство цифрового развития Камчатского края;","Администрация Губернатора Камчатского края (отдел защиты информации и государственной тайны);","Администрация Губернатора Камчатского края (отдел специальной документальной связи);"]
["П.16.3.","Развитие инфраструктуры информационно-коммуникационных технологий, сетей и средств связи","+","+","Минцифры России","Разработка государственной политики и нормативно-правовое регулирование в сфере развития инфраструктуры информационно-коммуникационных технологий, сетей и средств связи.\nРазвитие и модернизация российской инфраструктуры связи, включая ее интеграцию с международными сетями связи.\nУчастие в разработке национальных стандартов построения сетей связи и требований к использованию оборудования в целях повышения качества услуг связи. \nАнализ перспектив использования новых технологий в сфере связи, включая беспроводные и спутниковые технологии, определение основных направлений их развития. \nРазвитие инфраструктуры средств и сетей связи","Развитие и модернизация средств и сетей связи, расширение рынка услуг связи и информационно-технических систем","Министерство цифрового развития Камчатского края;\n",null,null,null,"Министерство цифрового развития Камчатского края;"]
["П.16.4.","Регулирование в сфере массовых коммуникаций и средств массовой информации, включая развитие сети Интернет, систем телевизионного и радиовещания, а также в сфере защиты детей от информации, причиняющей вред их здоровью и(или) развитию","+","+","Минцифры России,\nРоскомнадзор","Разработка государственной политики и нормативно-правовое регулирование в сфере средств массовой информации, телевизионного вещания и радиовещания, информационных агентств, электронных средств массовой информации, оборота информации в сети Интернет.\nУчастие в разработке и совершенствовании стратегии и концепции открытости федеральных органов исполнительной власти, методики реализации концепции открытости ФОИВ, направленных на внедрение принципов и механизмов системы \"Открытое правительство\". \nРазработка государственной политики и правового регулирование в сфере законодательства о:\n- СМИ;\n- изготовления аудиовизированных произведений, программ для электронных вычислительных машин, для баз данных и фонограмм;\n- обязательном экземпляре документов;\n- противодействии экстремистской деятельности;\n- интеллектуальной собственности;\n- рекламе;\n- распространении информации в сети Интернет.   \nОбеспечение распространения обязательных общедоступных телевизионных и радиоканалов. \nРазработка критериев формирования пакетов телерадиоканалов эфирного цифрового вещания и их распространения в иных средах. \nУчастие в разработке предложений по обеспечению информационной доступности инвалидов в сфере телерадиовещания. \nРеализация мер, направленных на повышение медиаграмотности граждан.\nФормирование и использование находящихся в федеральной собственности фондов законченных производством и вышедших в эфир телевизионных программ, передач, фонограмм, а также аудиовизуальных произведений. \nУчастие в совершенствовании регулирования оборота результатов интеллектуальной деятельности в сети Интернет. \nСтимулирование и защита интересов отечественных и русскоязычных СМИ за рубежом. Участие в формировании российскими СМИ положительного имиджа Российской Федерации за рубежом.\nРазработка государственной политики и нормативно-правовое регулирование в сфере печати, издательской и полиграфической деятельности.\nРегулирование в области защиты детей от информации, причиняющей вред их здоровью и развитию","Реализация государственной политики и нормативное правовое регулирование на уровне субъекта в сфере массовых коммуникаций (средств массовой информации, издательской и полиграфической деятельности, развития информационно-коммуникационной сети «Интернет»)\nРегулирование размещения объектов наружной рекламы","Министерство цифрового развития Камчатского края;\n\nАдминистрация Губернатора Камчатского края (управление информационной политики);\n\n\n\n",null,null,null,"Министерство цифрового развития Камчатского края;","Администрация Губернатора Камчатского края (управление информационной политики);"]
["П.16.5.","Регулирование в сфере электросвязи (включая использование радиочастотного спектра), управление национальным сегментом информационно-телекоммуникационной сети «Интернет» (за исключением вопросов массовых коммуникаций и средств массовой информации), обеспечения единства измерений в области связи","+","+","Минцифры России,\nРоскомнадзор","Регулирование в сфере электросвязи (включая использование радиочастотного спектра).   \nУчастие в выработке и реализации научно-технической политики и стратегии развития в сфере управления сетью \"Интернет\". Разработка и реализация государственной политики развития национального сегмента сети \"Интернет\". Участие в разработке норм и правил, регламентирующих адресацию в сети \"Интернет\" в Российской Федерации.                                                                                                                                                                                                                                              Участие в выработке предложений и заключений по вопросам тарифной политики и ценового регулирования в сфере электросвязи.    Подготовка предложений по формированию позиции администрации связи Российской Федерации в международных организациях связи.\nОрганизационно-техническое обеспечение деятельности Государственной комиссии по радиочастотам. \nОбеспечение доступа пользователей к радиочастотному спектру с учетом государственных приоритетов.\nФормирование предложений, касающихся распределения и использования радиочастотного спектра, в том числе для участия Администрации связи Российской Федерации в работе Международного союза электросвязи и других международных организациях. \nРассмотрение заключений обязательной метрологической экспертизы в части компетенции Минкомсвязи России.   ",null,"Министерство цифрового развития Камчатского края;\n\n\n\n\n\n",null,null,null,"Министерство цифрового развития Камчатского края;"]
["П.16.6.","Регулирование в сфере почтовой связи","+","+","Минцифры России,\nРоскомнадзор","Разработка и реализация государственной политики, нормативно-правовое регулирование в сфере почтовой связи.\n","Организация разрешительно-регистрационной работы в области почтовой связи","Министерство цифрового развития Камчатского края;",null,null,null,"Министерство цифрового развития Камчатского края;"]
["П.16.7.","Цифровая трансформация и развитие государственного управления","+","+","Минцифры России","Координация цифровой трансформации федеральных государственных органов и государственных органов субъектов Российской Федерации\nУправление данными\nУправление ИТ-архитектурой\nУправление проектами цифровой трансформации\nУправление цифровым продуктом","Обеспечение создания и эксплуатации государственных информационных систем в субъектах  \nРазвитие и эксплуатация государственных информационных ресурсов  в субъектах\nМетодическая поддержка органов исполнительной власти субъектов Российской Федерации, органов местного самоуправления, общественных объединений и иных организаций в сфере предоставления государственных  и муниципальных услуг в электронной форме. \nВыработка и реализация мер технического характера, направленных на повышение качества и доступности государственных и муниципальных услуг, предоставляемых гражданам и организациям органами государственной власти и местного самоуправления, за счет использования информационно – телекоммуникационных технологий.\nРазвитие и обеспечение функционирования информационных систем инфраструктуры, обеспечивающей информационно-технологическое взаимодействие информационных систем, используемых для предоставления государственных и муниципальных услуг в электронной форме.\nОсуществление технологических мероприятий, направленных на создание и развитие единого пространства юридически значимого взаимодействия с использованием информационно-телекоммуникационных технологий, в том числе с использованием электронных подписей, между федеральными органами исполнительной власти, органами исполнительной власти субъектов Российской Федерации, органами местного самоуправления, общественными объединениями и иными организациями, а также иными участниками единого пространства юридически значимого взаимодействия и гражданами. Выработка и реализация мер, направленных на увеличение доли граждан, использующих возможность получения государственных и муниципальных услуг в электронном виде.","Министерство цифрового развития Камчатского края;\n\nМинистерство экономического развития Камчатского края;\n\nВсе исполнительные органы Камчатского края   \n\n",null,null,null,"Министерство цифрового развития Камчатского края;","Министерство экономического развития Камчатского края;","Все исполнительные органы Камчатского края   "]
["П.16.8.","Регулирование в области спутниковых систем связи","+","+","Минцифры России, \nРоскомнадзор","Регулирование и организация разрешительно-регистрационной работы в области спутниковых систем связи",null,"Министерство цифрового развития Камчатского края;\n",null,{"$f":"IF(M12='список П.Х'!$F$3,\"Сформировать\",IF(N12 ='список П.Х'!$F$3,\"Сформировать\",IF(O12 ='список П.Х'!$F$3,\"Сформировать\",\"\")))","v":""},null,"Министерство цифрового развития Камчатского края;"]
["П.16.9.","Регулирование средств связи и нумерации","+","+","Минцифры России, \nРоскомнадзор",null,null,null,null,{"$f":"IF(M13='список П.Х'!$F$3,\"Сформировать\",IF(N13 ='список П.Х'!$F$3,\"Сформировать\",IF(O13 ='список П.Х'!$F$3,\"Сформировать\",\"\")))","v":""}]
["П.16.10.","Регулирование в сфере электронных средств массовой информации и массовых коммуникаций,  в том числе компьютерных сетей общего пользования ","+","-","\nМинцифры России,\nРоскомнадзор","Регулирование вопросов администрирования и развития  информационных и телекоммуникационных систем и комплексов, сети Интернет\nРегулирование в сфере предоставления электронных услуг\nКоординация информатизации",null,null,null,{"$f":"IF(M14='список П.Х'!$F$3,\"Сформировать\",IF(N14 ='список П.Х'!$F$3,\"Сформировать\",IF(O14 ='список П.Х'!$F$3,\"Сформировать\",\"\")))","v":""}]
["П.16.11.","Регулирование в области печати, издательской и полиграфической деятельности","+","+","Минцифры России","Организация разрешительно-регистрационной работы в области печати, издательской и полиграфической деятельности","Реализация государственной политики и нормативное правовое регулирование в сфере массовых коммуникаций (средств массовой информации, издательской и полиграфической деятельности, развития информационно-коммуникационной сети «Интернет»)","Администрация Губернатора Камчатского края (управление информационной политики);",null,{"$f":"IF(M15='список П.Х'!$F$3,\"Сформировать\",IF(N15 ='список П.Х'!$F$3,\"Сформировать\",IF(O15 ='список П.Х'!$F$3,\"Сформировать\",\"\")))","v":""},null,"Администрация Губернатора Камчатского края (управление информационной политики);"]

{"sheet":"П.17","index":17,"n_rows":12,"n_cols":15,"rows_kept":12,"cut":false,"hidden":false,"merged":[[1,0,1,9],[11,0,11,9]]}
[null,"<<< Назад"]
["П.17. Регулирование жилищно-коммунального хозяйства и строительства"]
[]
["Шифр вида профессиональной деятельности","Наименование вида профессиональной деятельности гражданских служащих","Наличие в ФГО","Наличие в ГО субъектов РФ","Наименования ФГО","Детализация вида профессиональной деятельности ФГО","Детализация вида профессиональной деятельности ГО субъектов РФ","Наименование ГО КК","Наименование профессионального стандарта, знания и умения которого рекомендуется использовать при формировании квалификационных требований","Примечание"]
["П.17.1.","Регулирование в сфере капитального строительства и капитального ремонта*","+","+","Минстрой России, Управление делами Президента Российской Федерации ","Обеспечение капитального строительства, ремонта и признания помещений жилищного фонда субъекта Российской Федерации непригодными для проживания, многоквартирного дома аварийным и подлежащим сносу или реконструкции","Организация строительства и содержания муниципального жилищного фонда\nОбеспечение капитального строительства, ремонта и признания помещений жилищного фонда субъекта Российской Федерации непригодными для проживания, многоквартирного дома аварийным и подлежащим сносу или реконструкции","Министерство строительства и жилищной политики Камчатского края;\n\nМинистерство жилищно-коммунального хозяйства и энергетики Камчатского края;\n\nГосударственная жилищная инспекция Камчатского края;\n\nИнспекция государственного строительного надзора Камчатского края;","Специалист по управлению жилищным фондом",null,null,"Министерство строительства и жилищной политики Камчатского края;","Министерство жилищно-коммунального хозяйства и энергетики Камчатского края;","Государственная жилищная инспекция Камчатского края;","Инспекция государственного строительного надзора Камчатского края;"]
["П.17.2.","Техническое регулирование градостроительной деятельности и архитектуры","+","+","Минстрой России","Обеспечение разрешительной деятельности и согласование строительно-технических условий\nУтверждение схем и документации территориального планирования\nРегулирование в сфере благоустройства территорий\nУтверждение правил и организация благоустройства территории городского округа, городского округа с внутригородским делением\nРегулирование в сфере градостроительной деятельности и архитектуры","Реализация государственной политики в сфере градостроительной деятельности и архитектуры\nКонтроль за соблюдением органами местного самоуправления законодательства Российской Федерации о градостроительной деятельности\nОбеспечение предоставления государственных услуг в сфере градостроительной деятельности\nКонтроль за осуществлением деятельности по выдаче разрешений на строительство ","Министерство строительства и жилищной политики Камчатского края;\n\nИнспекция государственного строительного надзора Камчатского края;\n","Специалист по управлению жилищным фондом",null,null,"Министерство строительства и жилищной политики Камчатского края;","Инспекция государственного строительного надзора Камчатского края;"]
["П.17.3.","Оценка и учет состояния объектов жилищно-коммунального комплекса","+","+","Минстрой России","Регулирование вопросов аварийного жилья","Реализация государственной политики в сфере развития жилищно-коммунальной инфраструктуры","Министерство жилищно-коммунального хозяйства и энергетики Камчатского края;\n\nГосударственная жилищная инспекция Камчатского края;\n","Специалист по управлению жилищным фондом",null,null,"Министерство жилищно-коммунального хозяйства и энергетики Камчатского края;","Государственная жилищная инспекция Камчатского края;"]
["П.17.4.","Регулирование в сфере коммунальных и эксплуатационных услуг**","+","+","Минстрой России","Заключение контрактов с подрядными организациями в сфере коммунальных услуг\nРегулирование ценообразования и сметного нормирования в сфере жилищной политики","Реализация государственной политики в области ценообразования и сметного нормирования","Министерство строительства и жилищной политики Камчатского края;\n\nРегиональная служба по тарифам и ценам Камчатского края;\n","Специалист по управлению жилищным фондом",null,null,"Министерство строительства и жилищной политики Камчатского края;","Региональная служба по тарифам и ценам Камчатского края;"]
["П.17.5.","Осуществление государственного строительного надзора","+","+","Ростехнадзор",null,null,"Инспекция государственного строительного надзора Камчатского края;\n",null,null,null,"Инспекция государственного строительного надзора Камчатского края;"]
["П. 17.6.","Регулирование в области долевого строительства многоквартирных домов, иных объектов недвижимости и деятельности жилищно-строительных кооперативов ",null,null,null,null,null,"Инспекция государственного строительного надзора Камчатского края;\n",null,null,null,"Инспекция государственного строительного надзора Камчатского края;"]
[]
["\n*/** В случае, если гражданский служащий осуществляет профессиональную служебную деятельность в сфере жилищного надзора, то в должностном регламенте целесообразно указывать виды деятельности П.17.1. «Регулирование в сфере капитального строительства и капитального ремонта», П.17.4. «Регулирование в сфере коммунальных и эксплуатационных услуг»."]

{"sheet":"П.18","index":18,"n_rows":22,"n_cols":12,"rows_kept":22,"cut":false,"hidden":false,"merged":[[1,0,1,9],[21,0,21,7]]}
[null,"<<< Назад"]
["П.18. Регулирование транспортного комплекса"]
[]
["Шифр вида профессиональной деятельности","Наименование вида профессиональной деятельности гражданских служащих","Наличие в ФГО","Наличие в ГО субъектов РФ","Наименования ФГО","Детализация вида профессиональной деятельности ФГО","Детализация вида профессиональной деятельности ГО субъектов РФ","Наименование ГО КК","Столбец1","Примечание"]
["П.18.1.","Регулирование в сфере гражданской авиации ","+","+","\nМинтранс России\n","Обеспечение летной эксплуатации и поддержание летной годности воздушных судов\nОрганизация использования воздушного пространства\nРадиотехническое обеспечение авиационных полетов \nРегулирование перевозок воздушным транспортом\nРегулирование безопасности в сфере гражданского воздушного транспорта","Обеспечение летной эксплуатации и поддержание летной годности воздушных судов\nКонтроль (надзор) в сфере гражданской авиации, использования воздушного пространства Российской Федерации, аэронавигационного обслуживания пользователей воздушного пространства Российской Федерации","\n\n\n\n"]
["П.18.2.","Регулирование в сфере автомобильного и городского пассажирского транспорта","+","+","Минтранс России,\nУправление делами Президента Российской Федерации ","Составление и утверждение графиков движения пассажирского транспорта","Реализация государственной политики и нормативное правовое регулирование в сфере автомобильного и городского пассажирского транспорта","Министерство транспорта и дорожного строительства Камчатского края;\n",null,null,null,"Министерство транспорта и дорожного строительства Камчатского края;"]
["П.18.3.","Регулирование в сфере морского и внутреннего водного транспорта ","+","+","Минтранс России,\nРосморречфлот, Ространснадзор","Организация ледокольного обеспечения в акватории Северного морского пути, в акваториях морских портов и на подходах к ним\nОрганизация навигационно-гидрографического обеспечения в акватории Северного морского пути, в акваториях морских портов и на подходах к ним\nОрганизация деятельности по строительству и содержанию технического флота","Реализация государственной политики и нормативное правовое регулирование в сфере морского (включая морские порты) и внутреннего водного транспорта","Министерство транспорта и дорожного строительства Камчатского края;\n\n",null,null,null,"Министерство транспорта и дорожного строительства Камчатского края;"]
["П.18.4.","Регулирование в сфере железнодорожного транспорта","+","+","Минтранс России, Росжелдор,\nРостранснадзор",null,null,"\n\n\n\n\n\n"]
["П.18.5.","Регулирование в сфере эксплуатации автомобильных дорог и дорожного хозяйства","+","+","Минтранс России,\nРостранснадзор","Регулирование в сфере дорожного хозяйства\nРегулирование в сфере автомобильного транспорта и дорожного хозяйства\nОсуществление мероприятий по созданию и функционированию транспортной инфраструктуры в субъектах Российской Федерации ","Региональный государственный надзор за обеспечением сохранности автомобильных дорог регионального и межмуниципального значения\nОбеспечение сохранности государственного имущества в части эксплуатации автомобильных дорог ","Министерство транспорта и дорожного строительства Камчатского края;\n",null,null,null,"Министерство транспорта и дорожного строительства Камчатского края;"]
["П.18.6.","Управление государственным имуществом в сфере автомобильного транспорта и дорожного хозяйства ","+","+","Росавтодор",null,null,"Министерство транспорта и дорожного строительства Камчатского края;\n",null,null,null,"Министерство транспорта и дорожного строительства Камчатского края;"]
["П.18.7.","Регулирование в сфере транспортной безопасности","+","+","Минтранс России, Росавтодор",null,null,"Министерство транспорта и дорожного строительства Камчатского края;\n",null,null,null,"Министерство транспорта и дорожного строительства Камчатского края;"]
["П.18.8.","Регулирование транспортной безопасности в сфере морского и внутреннего водного транспорта","+","-","Росморречфлот","Организация деятельности по содержанию, строительству, реконструкции и обеспечению безопасности  гидротехнических сооружений\nОрганизация деятельности по строительству и содержанию технического флота"]
["П.18.9.","Регулирование в сфере дорожного строительства","+","+","Росавтодор",null,null,"Министерство транспорта и дорожного строительства Камчатского края;\n",null,null,null,"Министерство транспорта и дорожного строительства Камчатского края;"]
["П.18.10.","Регулирование в сфере обустройства пунктов пропуска через государственную границу","+","+","Минтранс России"]
["П.18.11.","Регулирование в сфере воздушного транспорта","+","+","Росавиация, Ространснадзор",null,null,"Министерство транспорта и дорожного строительства Камчатского края;\n",null,null,null,"Министерство транспорта и дорожного строительства Камчатского края;"]
["П.18.12.","Регулирование перевозок воздушным траспортом","+","+","Росавиация, Управление делами Президента Российской Федерации ",null,null,"Министерство транспорта и дорожного строительства Камчатского края;\n",null,null,null,"Министерство транспорта и дорожного строительства Камчатского края;"]
["П.18.13.","Регулирование аэропортовой деятельности","+","+","Росавиация",null,null,"Министерство транспорта и дорожного строительства Камчатского края;\n",null,{"$f":"IF(M17='список П.Х'!$F$3,\"Сформировать\",IF(N17 ='список П.Х'!$F$3,\"Сформировать\",IF(O17 ='список П.Х'!$F$3,\"Сформировать\",\"\")))","v":""},null,"Министерство транспорта и дорожного строительства Камчатского края;"]
["П.18.14.* ","Регулирование в сфере самоходных машин и иных видов транспорта",null,null,null,null,null,"Министерство транспорта и дорожного строительства Камчатского края;",null,{"$f":"IF(M18='список П.Х'!$F$3,\"Сформировать\",IF(N18 ='список П.Х'!$F$3,\"Сформировать\",IF(O18 ='список П.Х'!$F$3,\"Сформировать\",\"\")))","v":""},null,"Министерство транспорта и дорожного строительства Камчатского края;"]
["П.18.15. ","Регулирование международного сотрудничества в сфере транспорта",null,null,"Минтранс России",null,null,null,null,{"$f":"IF(M19='список П.Х'!$F$3,\"Сформировать\",IF(N19 ='список П.Х'!$F$3,\"Сформировать\",IF(O19 ='список П.Х'!$F$3,\"Сформировать\",\"\")))","v":""}]
["П.18.16. ","Регулирование экономики в сфере транспорта",null,null,"Минтранс России",null,null,"Министерство транспорта и дорожного строительства Камчатского края;",null,null,null,"Министерство транспорта и дорожного строительства Камчатского края;"]
[]
["* В случае, если гражданский служащий осуществляет профессиональную служебную деятельность в сфере самоходных машин и иных видов транспорта, то в должностном регламенте целесообразно указывать\n вид деятельности П.15.37. «Регулирование в области обеспечения безопасной эксплуатации самоходных машин и других видов техники» в соответствии с актуальной редакцией справочника."]

{"sheet":"П.19","index":19,"n_rows":16,"n_cols":13,"rows_kept":16,"cut":false,"hidden":false,"merged":[[1,0,1,9]]}
[null,"<<< Назад"]
["П.19. Регулирование в сфере труда и социального развития"]
[]
["Шифр вида профессиональной деятельности","Наименование вида профессиональной деятельности гражданских служащих","Наличие в ФГО","Наличие в ГО субъектов РФ","Наименования ФГО","Детализация вида профессиональной деятельности ФГО","Детализация вида профессиональной деятельности ГО субъектов РФ","Наименование ГО КК","Наименование профессионального стандарта, знания и умения которого рекомендуется использовать при формировании квалификационных требований","Примечание"]
["П.19.1.","Регулирование в сфере занятости населения, безработицы и миграция","+","+","Минтруд России,\nРоструд ","Регулирование в сфере временной занятости молодежи\nРегулирование в сфере трудовой миграции","Реализация государственной политики и нормативное правое регулирование в сфере занятости населения. Регулирование в сфере трудовой миграции","Министерство труда и развития кадрового потенциала Камчатского края;\n",null,null,null,"Министерство труда и развития кадрового потенциала Камчатского края;"]
["П.19.2.","Регулирование в сфере трудовых отношений и социального партнерства","+","+","Минтруд России,\nРоструд ","Разработка и обеспечение соблюдения трудовых договоров и соглашений\nОбеспечение соблюдения трудового законодательства и иных нормативных правовых актов, содержащих нормы трудового права\nПроведение правовой экспертизы в сфере трудового законодательства\nРегулирование в сфере применения профессиональных стандартов\nРегулирование в области предоставления государственных гарантий и компенсаций для лиц, работающих в районах Крайнего Севера, приравненных к ним местностях и других местностях с особыми климатическими условиями\nРегулирование в сфере нормирования труда","Регулирование трудовых отношений и социального партнерства","Министерство труда и развития кадрового потенциала Камчатского края;\n",null,null,null,"Министерство труда и развития кадрового потенциала Камчатского края;"]
["П.19.3.","Регулирование в сфере условий и охраны труда","+","+","Минтруд России,\nРоструд","Осуществление государственной экспертизы труда","Реализация государственной политики в области охраны труда","Министерство труда и развития кадрового потенциала Камчатского края;\n","Специалист в области охраны труда",null,null,"Министерство труда и развития кадрового потенциала Камчатского края;"]
["П.19.4.","Регулирование в сфере оплаты труда работников государственного сектора экономики","+","+","Минтруд России",null,"Реализация государственной политики и нормативное правовое регулирование в сфере оплаты труда","Министерство социального благополучия и семейной политики Камчатского края;",null,null,null,"Министерство социального благополучия и семейной политики Камчатского края;"]
["П.19.5.","Регулирование в сфере альтернативной гражданской службы","+","-","Роструд ","Осуществление контроля за прохождением гражданами альтернативной гражданской службы","Организация альтернативной гражданской службы на территории субъекта Российской Федерации","Министерство труда и развития кадрового потенциала Камчатского края;\n",null,null,null,"Министерство труда и развития кадрового потенциала Камчатского края;"]
["П.19.6.","Регулирование в сфере семьи, материнства и детства","+","+","Минтруд России\n","Регулирование в сфере гендерного равенства и развития\nРегулирование в сфере обеспечения социальных гарантий и мер социальной поддержки семей с детьми\nРегулирование в сфере предоставления социальных льгот, гарантий и выплат",null,"Министерство социального благополучия и семейной политики Камчатского края;\n","Специалист по работе с семьей, \nПсихолог в социальной сфере",null,null,"Министерство социального благополучия и семейной политики Камчатского края;"]
["П.19.7.","Регулирование в сфере социального обеспечения и обслуживания граждан","+","+","Минтруд России, Роструд\n","Регулирование в сфере обеспечения социальных гарантий и совершенствование государственной политики в отношении Героев Советского Союза, Героев Российской\nРегулирование в сфере предоставления социальных льгот, гарантий и выплат Федерации, полных кавалеров ордена Славы и членов их семей\nРегулирование вопросов обеспечения жильем отдельных категорий граждан\nПроведение правовой экспертизы в сфере социального обеспечения","Регулирование в сфере социального обслуживания\nРегулирование в сфере предоставления социальных гарантий и реализации мер социальной поддержки семей с детьми, малоимущих семей\nРегулирование в сфере предоставления социальных гарантий в отношении Героев Советского Союза, Героев Российской Федерации, полных кавалеров ордена Славы и членов их семей\n","Министерство социального благополучия и семейной политики Камчатского края;\n","Социальный работник",null,null,"Министерство социального благополучия и семейной политики Камчатского края;"]
["П.19.8.","Регулирование в сфере опеки и попечительства","+","+","Минтруд России,\nМинобрнауки России,\nРоструд\n","Регулирование в сфере опеки и попечительства в отношении несовершеннолетних граждан\nРегулирование в сфере опеки и попечительства в  отношении недееспособных или ограниченно дееспособных граждан\n","Регулирование в сфере опеки и попечительства в отношении несовершеннолетних граждан\nОрганизация деятельности органов опеки и попечительства субъектов Российской Федерации над недееспособными и ограниченно дееспособными совершеннолетними гражданами\nРегиональный государственный надзор за деятельностью опекунов и попечителей","Министерство социального благополучия и семейной политики Камчатского края;\n\n","Специалист в области воспитания, \nПсихолог в социальной сфере, \nСпециалист органа опеки и попечительства в отношении несовершеннолетних \n",null,null,"Министерство социального благополучия и семейной политики Камчатского края;"]
["П.19.9.","Обеспечение социальной защиты и реабилитации инвалидов","+","+","Минтруд России\n","Регулирование в сфере организации и развития доступной и безбарьерной среды для инвалидов\nРегулирование в сфере предоставления инвалидам технических средств реабилитации\nРегулирование в сфере предоставления социальных льгот, гарантий и выплат\nРегулирование проведения медико-социальной экспертизы\nСодействие развитию сети подведомственных учреждений медико-социальной экспертизы и методологии медико-социальной экспертизы","Реализация государственной политики в области создания условий для устойчивого развития доступной для инвалидов среды и равных возможностей","Министерство социального благополучия и семейной политики Камчатского края;\n\nВсе исполнительные органы Камчатского края*   \n\n\n\n","Специалист по реабилитационной работе в социальной сфере, \nПсихолог в социальной сфере","*ИО, реализующие программные мероприятия в сфере доступной среды для инвалидов",null,"Министерство социального благополучия и семейной политики Камчатского края;","Все исполнительные органы Камчатского края   "]
["П.19.10.","Регулирование в сфере пенсионного обеспечения и страхования","+","-","Минтруд России, Минфин России\n","Регулирование государственного, негосударственного и иного пенсионного обеспечения, социальных доплат к пенсиям\nРегулирование негосударственного и  добровольного пенсионного страхования\nРегулирование деятельности негосударственных пенсионных фондов, управляющих компаний, специализированных депозитариев и актуариев по негосударственному пенсионному обеспечению, обязательному пенсионному страхованию и профессиональному пенсионному страхованию\nРегулирование по вопросам формирования и инвестирования средств негосударственного пенсионного обеспечения и добровольного пенсионного страхования\nРегулирование в сфере формирования и инвестирования средств пенсионных накоплений, в том числе включенных в выплатной резерв и средств пенсионных накоплений застрахованных лиц, которым установлена срочная пенсионная выплата\nРегулирование государственного обязательного и дополнительного пенсионного страхования\nРегулирование в сфере обеспечения социальных гарантий и совершенствование государственной политики в отношении Героев Советского Союза, Героев Российской Федерации, полных кавалеров ордена Славы и членов их семей\nРегулирование в сфере предоставления социальных льгот, гарантий и выплат",null,null,"Специалист по организации назначения и выплаты пенсии"]
["П.19.11.","Регулирование в сфере социального страхования","+","-","Минтруд России\n","Регулирование вопросов начисления и уплаты страховых взносов в государственные внебюджетные фонды, формирование тарифов по страховым взносам\nМетодологическое обеспечение правильности исчисления и администрирования уплаты страховых взносов \nРегулирование в сфере социального страхования от несчастных случаев на производстве и профессиональных заболеваний\nРегулирование деятельности страховщиков по видам обязательного социального страхования \nРегулирование в сфере страхового обеспечения по видам обязательного социального страхования\nПроведение правовой экспертизы в сфере социального страхования "]
["П.19.12.","Регулирование в сфере демографического развития","+","-","Минтруд России\n","Организация и проведение мониторингов демографической ситуации и выполнения международных обязательств в области демографического развития","Организация и проведение мониторингов демографической ситуации\n","Министерство социального благополучия и семейной политики Камчатского края;\n",null,null,null,"Министерство социального благополучия и семейной политики Камчатского края;"]

{"sheet":"П.20","index":20,"n_rows":8,"n_cols":13,"rows_kept":8,"cut":false,"hidden":false,"merged":[[1,0,1,9]]}
[null,"<<< Назад"]
["П.20 Регулирование государственной гражданской и муниципальной службы"]
[]
["Шифр вида профессиональной деятельности","Наименование вида профессиональной деятельности гражданских служащих","Наличие в ФГО","Наличие в ГО субъектов РФ","Наименования ФГО","Детализация вида профессиональной деятельности ФГО","Детализация вида профессиональной деятельности ГО субъектов РФ","Наименование ГО КК","Наименование профессионального стандарта, знания и умения которого рекомендуется использовать при формировании квалификационных требований","Примечание"]
["П.20.1.","Развитие кадровых технологий на государственной гражданской и муниципальной службе","+","+","Минтруд России, \nУправление делами Президента Российской Федерации ",null,null,"Администрация Губернатора Камчатского края (Главное управление государственной службы);\n","Специалист по управлению персоналом",null,null,"Администрация Губернатора Камчатского края (Главное управление государственной службы);"]
["П.20.2.","Регулирование профессионального развития гражданских служащих","+","+",null,"Регулирование дополнительного профессионального образования государственных гражданских служащих",null,"Администрация Губернатора Камчатского края (Главное управление государственной службы);","Специалист по управлению персоналом",null,null,"Администрация Губернатора Камчатского края (Главное управление государственной службы);"]
["П.20.3.","Регулирование в сфере прохождения государственной гражданской службы","+","+",null,"Обеспечение поступления, прохождения, прекращения государственной службы\nРегулирование в сфере оплаты труда\nРегулирование в сфере наградной деятельности","Обеспечение поступления, прохождения, прекращения государственной службы\nРегулирование в сфере оплаты труда\nРегулирование в сфере наградной деятельности","Администрация Губернатора Камчатского края (Главное управление государственной службы);\n\nВсе исполнительные органы Камчатского края  \n ","Специалист по управлению персоналом",null,null,"Администрация Губернатора Камчатского края (Главное управление государственной службы);","Все исполнительные органы Камчатского края   "]
["П.20.4.","Осуществление профилактики коррупционных и иных правонарушений","+","+",null,"Противодействие коррупции, обеспечение деятельности комиссии по урегулированию конфликта интересов и проведение проверки сведений о доходах, расходах ","Обеспечение деятельности комиссии по урегулированию конфликта интересов и проведение проверки сведений о доходах, расходах ","Администрация Губернатора Камчатского края (отдел по профилактике коррупционных и иных правонарушений);\n\nВсе исполнительные органы Камчатского края   \n",null,null,null,"Администрация Губернатора Камчатского края (отдел по профилактике коррупционных и иных правонарушений);","Все исполнительные органы Камчатского края   "]

{"sheet":"П.21","index":21,"n_rows":29,"n_cols":13,"rows_kept":29,"cut":false,"hidden":false,"merged":[[1,0,1,9]]}
[null,"<<< Назад"]
["П.21. Регулирование бюджетной системы"]
[]
["Шифр вида профессиональной деятельности","Наименование вида профессиональной деятельности гражданских служащих","Наличие в ФГО","Наличие в ГО субъектов РФ","Наименования ФГО","Детализация вида профессиональной деятельности ФГО","Детализация вида профессиональной деятельности ГО субъектов РФ","Наименование ГО КК","Столбец1","Примечание"]
["П.21.1","Осуществление бюджетной методологии  ","+","+","Минфин России","Регулирование в сфере муниципальных финансов"]
["П.21.2","Регулирование системы межбюджетных отношений \n\n","+","+","Минфин России\nФедеральное казначейство","Организация составления и обеспечение исполнения бюджета Союзного государства\nАнализ обоснованности использования средств федерального бюджета\nОбеспечение исполнения федерального бюджета\nОбеспечение соблюдения полноты и достоверности бюджетной отчетности\nМетодологическое руководство в области исполнения бюджетов по расходам\nМетодологическое руководство в области исполнения бюджетов по доходам и источникам финансирования дефицита\nФормирование и представление бюджетной отчетности об исполнении федерального бюджета, консолидированного бюджета Российской Федерации и бюджетов государственных внебюджетных фондов Российской Федерации \nФормирование и представление сводной бухгалтерской (финансовой) отчетности об исполнении бюджетными и автономными учреждениями плана финансово-хозяйственной деятельности\nВедение и обслуживание государственных информационных систем\nРегулирование системы межбюджетных отношений\nРегулирование в сфере предоставления межбюджетных трансфертов\nОрганизация распределения поступлений между бюджетами бюджетной системы",null,"Министерство финансов Камчатского края;\n\n\n\n\n\n",null,null,null,"Министерство финансов Камчатского края;"]
["П.21.3","Бюджетная политика в сфере государственной военной, правоохранительной службы и государственного оборонного заказа","+","+","Минфин России"]
["П.21.4","Бюджетная политика в сфере образования и молодежной политики","+","+","Минфин России",null,null,"Министерство образования Камчатского края;\n\nМинистерство развития гражданского общества и молодежи Камчатского края;\n",null,null,null,"Министерство образования Камчатского края;","Министерство развития гражданского общества и молодежи Камчатского края;"]
["П.21.5","Бюджетная политика в сфере государственного управления, судебной системы, государственной гражданской службы","+","+","Минфин России",null,null,"Министерство финансов Камчатского края;\n",null,null,null,"Министерство финансов Камчатского края;"]
["П.21.6","Организация составления и исполнения федерального бюджета","+","+","Минфин России",null,null,"Министерство финансов Камчатского края;\n\nВсе исполнительные органы Камчатского края \n  ",null,null,null,"Министерство финансов Камчатского края;","Все исполнительные органы Камчатского края   "]
["П.21.7","Бюджетная политика в сфере воспроизводства и использования природных ресурсов, землепользования, картографии и геодезии","+","+","Минфин России",null,null,"Министерство природных ресурсов и экологии Камчатского края;\n",null,null,null,"Министерство природных ресурсов и экологии Камчатского края;"]
["П.21.8","Анализ и прогнозирование доходов","+","+","Минфин России",null,null,"Министерство финансов Камчатского края;\n\nМинистерство экономического развития Камчатского края;\n",null,null,null,"Министерство финансов Камчатского края;","Министерство экономического развития Камчатского края;"]
["П.21.9","Бюджетное регулирование в сфере научной и научно-технической деятельности","+","+","Минфин России"]
["П.21.10","Бюджетное регулирование в сфере здравоохранения","+","+","Минфин России",null,null,"Министерство здравоохранения Камчатского края;\n",null,null,null,"Министерство здравоохранения Камчатского края;"]
["П.21.11","Бюджетное регулирование в сфере культуры и туризма","+","+","Минфин России",null,null,"Министерство туризма Камчатского края;\n\nМинистерство культуры Камчатского края;",null,null,null,"Министерство туризма Камчатского края;","Министерство культуры Камчатского края;"]
["П.21.12"," Бюджетное регулирование в сфере социального обеспечения, труда и программ государственной занятости населения","+","+","Минфин России",null,null,"Министерство труда и развития кадрового потенциала Камчатского края;\n\nМинистерство социального благополучия и семейной политики Камчатского края;\n",null,null,null,"Министерство труда и развития кадрового потенциала Камчатского края;","Министерство социального благополучия и семейной политики Камчатского края;"]
["П.21.13","Бюджетное регулирование в сфере физической культуры и спорта","+","+","Минфин России",null,null,"Министерство спорта Камчатского края;\n",null,null,null,"Министерство спорта Камчатского края;"]
["П.21.14","Бюджетное регулирование в сфере обязательного социального страхования","+","+","Минфин России",null,null,"Министерство здравоохранения Камчатского края;\n",null,null,null,"Министерство здравоохранения Камчатского края;"]
["П.21.15","Осуществление бюджетных правоотношений","+","+","Минфин России",null,"Осуществление бюджетных правоотношений на уровне субъекта Российской Федерации","Министерство финансов Камчатского края;\n",null,null,null,"Министерство финансов Камчатского края;"]
["П.21.16","Бюджетная политика в области транспорта, дорожного хозяйства и транспортного обеспечения","+","+","Минфин России",null,null,"Министерство транспорта и дорожного строительства Камчатского края;",null,null,null,"Министерство транспорта и дорожного строительства Камчатского края;"]
["П.21.17","Бюджетная политика в области агропромышленного комплекса","+","+","Минфин России",null,null,"Министерство сельского хозяйства, пищевой и перерабатывающей промышленности Камчатского края;\n",null,null,null,"Министерство сельского хозяйства, пищевой и перерабатывающей промышленности Камчатского края;"]
["П.21.18","Бюджетная политика в области рыболовства и рыбоводства","+","+","Минфин России",null,null,"Министерство рыбного хозяйства Камчатского края;",null,null,null,"Министерство рыбного хозяйства Камчатского края;"]
["П.21.19","Бюджетная политика в области гражданского строительства и жилищной политики","+","+","Минфин России",null,null,"Министерство строительства и жилищной политики Камчатского края;\n",null,null,null,"Министерство строительства и жилищной политики Камчатского края;"]
["П.21.20","Бюджетная политика в области промышленности гражданского назначения","+","+","Минфин России",null,null,"Все исполнительные органы Камчатского края   \n",null,"* ИО, регулирующие сферы фармацевтической,  химической, легкой и текстильной промышленности, лесопромышленного и металлургического комплексов, народных художественных промыслов, промышленности строительных материалов",null,"Все исполнительные органы Камчатского края   "]
["П.21.21","Бюджетная политика в области информационного-коммуникационных технологий, связи и средств массовой информации","+","+","Минфин России",null,null,"Министерство цифрового развития Камчатского края;\n",null,null,null,"Министерство цифрового развития Камчатского края;"]
["П.21.22","Бюджетная политика в области топливно-энергетического комплекса","+","+","Минфин России",null,null,"Министерство жилищно-коммунального хозяйства и энергетики Камчатского края;\n",null,null,null,"Министерство жилищно-коммунального хозяйства и энергетики Камчатского края;"]
["П.21.23.","Регулирование в сфере ведения бюджетного (казначейского) учета и составления бюджетной отчетности ","+","+","Федеральное казначейство","Ведение единого казначейского счета",null,"Министерство финансов Камчатского края;\n",null,null,null,"Министерство финансов Камчатского края;"]
["П.21.24.","Казначейское обслуживание исполнения счетов","+","+","Федеральное казначейство","Регулирование в сфере операционного обслуживания получателей бюджетных средств\nОрганизация и проведение финансово-бюджетных операций со средствами бюджетов бюджетной системы\nОсуществление кассового планирования и прогнозирования исполнения бюджетов \nКассовое обслуживание исполнения бюджетов бюджетной системы Российской Федерации, осуществление операций со средствами неучастников бюджетного процесса, осуществление отдельных функций финансовых органов субъектов Российской Федерации (финансовых органов муниципальных образований), органов управления государственными внебюджетными фондами по исполнению соответствующих бюджетов \nКассовое планирование и прогнозирование федерального бюджета \nКоординация операционного обслуживания\nКазначейское сопровождение\nАнализ исполнения и ведение отчетности об исполнении федерального бюджета\nВедение бюджетного (казначейского) учета по кассовому исполнению федерального бюджета и кассовому обслуживанию исполнения бюджетов бюджетной системы Российской Федерации,операций со средствами бюджетных, автономных учреждений и иных юридических лиц\nМетодическое обеспечение бюджетного учета и отчетности кассового обслуживания исполнения бюджетов бюджетной системы \nМетодическое обеспечение полномочий по исполнению федерального бюджета \nМетодическое обеспечение функционирования контрактной системы","Выработка и реализация бюджетной политики в сфере образования и молодежной политики\nВыработка и реализация бюджетной политики в сфере здравоохранения\nБюджетное регулирование в сфере культуры и туризма\nБюджетное регулирование в сфере социального обеспечения\nБюджетное регулирование в сфере физической культуры и спорта\nРегулирование ведения бюджетного учета в области национальной экономики\nРегулирование ведения бюджетного учета в области национальной безопасности и правоохранительной деятельности\nРегулирование ведения бюджетного учета в области жилищно-коммунального хозяйства","Министерство финансов Камчатского края;\n\nВсе исполнительные органы Камчатского края   \n\n\n\n",null,null,null,"Министерство финансов Камчатского края;","Все исполнительные органы Камчатского края   "]
["П.21.25.","Организация составления и обеспечения исполнения бюджетов бюджетной системы Российской Федерации","+","+","Минфин России,\nФедеральное казначейство","Организация составления и исполнения федерального бюджета Организация составления и обеспечение исполнения бюджета Союзного государства. Анализ обоснованности использования средств федерального бюджета Обеспечение исполнения федерального бюджета. Обеспечение соблюдения полноты и достоверности бюджетной отчетности. Методологическое руководство в области исполнения бюджетов по расходам\nМетодологическое руководство в области исполнения бюджетов по доходам и источникам финансирования дефицита \nФормирование и представление бюджетной отчетности об исполнении федерального бюджета, консолидированного бюджета Российской Федерации и бюджетов государственных внебюджетных фондов Российской Федерации \nФормирование и представление сводной бухгалтерской (финансовой) отчетности об исполнении бюджетными и автономными учреждениями плана финансово-хозяйственной деятельности\nВедение и обслуживание государственных информационных систем",null,"Все исполнительные органы Камчатского края   \n\n\n\n\n\n",null,null,null,"Все исполнительные органы Камчатского края   "]

{"sheet":"П.22","index":22,"n_rows":25,"n_cols":13,"rows_kept":25,"cut":false,"hidden":false,"merged":[[1,0,1,9]]}
[null,"<<< Назад"]
["П.22. Регулирование финансовой деятельности и финансовых рынков "]
[]
["Шифр вида профессиональной деятельности","Наименование вида профессиональной деятельности гражданских служащих","Наличие в ФГО","Наличие в ГО субъектов РФ","Наименования ФГО","Детализация вида профессиональной деятельности ФГО","Детализация вида профессиональной деятельности ГО субъектов РФ","Наименование ГО КК","Наименование профессионального стандарта, знания и умения которого рекомендуется использовать при формировании квалификационных требований","Примечание"]
["П.22.1.","Регулирование в сфере аудиторской деятельности","+","-"," Минфин России"]
["П.22.2.","Регулирование банковской деятельности","+","-","Минфин России"]
["П.22.3.","Регулирование страховой деятельности","+","-","Минфин России"]
["П.22.4.","Регулирование деятельности по организации и проведению азартных игр, лотерей, производству и реализации защищенной от подделок полиграфической продукции","+","-","Минфин России"]
["П.22.5.","Регулирование деятельности некредитных финансовых организаций","+","-","Минфин России"]
["П.22.6.","Регулирование в сфере бухгалтерского учета и финансовой отчетности","+","-","Минфин России","Регулирование в области бухгалтерского (финансового) учета и отчетности государственного сектора",null,"Администрация Губернатора Камчатского края (управление делами);\n\nВсе исполнительные органы Камчатского края   \n","Бухгалтер ",null,null,"Администрация Губернатора Камчатского края (управление делами);","Все исполнительные органы Камчатского края   "]
["П.22.7.","Управление государственными финансовыми активами","+","+","Минфин России",null,"Управление государственными финансовыми активами","Министерство финансов Камчатского края;\n",null,null,null,"Министерство финансов Камчатского края;"]
["П.22.8.","Управление государственным и муниципальным долгом","+","-","Минфин России","Управление государственным долгом субъекта Российской Федерации\nУправление муниципальным долгом","Управление государственным долгом субъекта Российской Федерации\n","Министерство финансов Камчатского края;\n",null,null,null,"Министерство финансов Камчатского края;"]
["П.22.9.","Обеспечение предоставления субсидий из федерального бюджета на возмещение недополученных доходов по выданным (приобретенным) жилищным (ипотечным) кредитам (займам) и реализация механизма исполнения обязательств Российской Федерации по сбережениям граждан Российской Федерации","+","-","Минфин России"]
["П.22.10.","Совершенствование корпоративного управления в институтах с государственным участием","+","-","Минфин России"]
["П.22.11.","Регулирование финансовых рынков","+","-","Минфин России"]
["П.22.12.","Регулирование деятельности по инвестированию временно свободных средств государственных корпораций и государственных компаний","+","-","Минфин России"]
["П.22.13.","Регулирование деятельности стратегических организаций по размещению средств в кредитные организации","+","-","Минфин России"]
["П.22.14.","Мониторинг и анализ аудиторской и бухгалтерской практики","+","-","Минфин России"]
["П.22.15.","Регулирование валютной сферы","+","-","Минфин России\nФНС России","Регулирование в сфере осуществления валютно-финансовых операций\nВалютный контроль"]
["П.22.16.","Регулирование в сфере финансовой несостоятельности (банкротства),  финансового оздоровления (санации) и урегулирование задолженности","+","-","Минфин России, \nФНС России"]
["П.22.17.","Регулирование в сфере внутреннего финансового контроля и внутреннего финансового аудита","+","+","ФНС России","Внутренний аудит\nОсуществление внутреннего финансового аудита\nОсуществление ведомственного контроля в сфере закупок для обеспечения федеральных нужд и ведомственного контроля закупочной деятельности\nУправление рисками в деятельности налоговых органов \nОсуществление ведомственного контроля за деятельностью федеральных казенных и бюджетных учреждений\nАнализ осуществления главными администраторами средств федерального бюджета внутреннего финансового контроля и внутреннего финансового аудита\nДетализация вида профессиональной служебной деятельности\nУправление внутренними рисками, организация и осуществление внутреннего финансового контроля и внутреннего финансового аудита","Осуществление внутреннего финансового контроля и внутреннего финансового аудита","Министерство финансов Камчатского края;\n\n","Внутренний аудитор",null,null,"Министерство финансов Камчатского края;"]
["П.22.18.","Регулирование в сфере урегулирования задолженности","+","-","ФНС России"]
["П.22.19.","Регулирование в сфере противодействия легализации (отмыванию) нелегальных доходов, финансированию терроризма и финансированию распространения оружия массового уничтожения","+",null,"Росфинмониторинг",null,null,"\n\n\n\n\n\n","Специалист по финансовому мониторингу (в сфере противодействия легализации доходов, полученных преступным путем, и финансированию терроризма)"]
["П.22.20"," Осуществление деятельности по контролю и надзору в финансово-бюджетной сфере","+",null,"Федеральное казначейство","Анализ исполнения бюджетных полномочий органов государственного (муниципального) финансового контроля, являющихся органами (должностными лицами) исполнительной власти субъектов Российской Федерации (местных администраций)\nОсуществление внешнего контроля качества работы аудиторских организаций",null,"Министерство финансов Камчатского края;\n\nАппарат Контрольно-счетной палаты Камчатского края;\n",null,null,null,"Министерство финансов Камчатского края;","Аппарат Контрольно-счетной палаты Камчатского края;"]
["П.22.21.","Осуществление внешнего контроля деятельности аудиторских организаций, оказывающих аудиторские услуги общественно значимым организациям",null,null,"Федеральное казначейство"]

{"sheet":"П.23","index":23,"n_rows":25,"n_cols":13,"rows_kept":25,"cut":false,"hidden":false,"merged":[[1,0,1,9]]}
[null,"<<< Назад"]
["П.23. Регулирование налоговой  деятельности"]
[]
["Шифр вида профессиональной деятельности","Наименование вида профессиональной деятельности гражданских служащих","Наличие в ФГО","Наличие в ГО субъектов РФ","Наименования ФГО","Детализация вида профессиональной деятельности ФГО","Детализация вида профессиональной деятельности ГО субъектов РФ","Наименование ГО КК","Столбец1","Примечание"]
["П.23.1.","Регулирование в сфере налога на добавленную стоимость","+","-","Минфин России",null,null,null,null,{"$f":"IF(M5='список П.Х'!$F$3,\"Сформировать\",IF(N5 ='список П.Х'!$F$3,\"Сформировать\",IF(O5 ='список П.Х'!$F$3,\"Сформировать\",\"\")))","v":""}]
["П.23.2.","Регулирование в сфере налога на прибыль организаций","+","-","Минфин России","Регулирование в сфере применения контрольно-кассовой техники"]
["П.23.3.","Регулирование в сфере имущественного налогообложения","+","+","Минфин России\nФНС России","\nАдминистрирование и контроль за правильностью исчисления, полнотой и своевременностью уплаты имущественных налогов ","Регулирование в сфере имущественного налогообложения","Министерство финансов Камчатского края;\n\nМинистерство экономического развития Камчатского края;",null,null,null,"Министерство финансов Камчатского края;","Министерство экономического развития Камчатского края;"]
["П.23.4.","Регулирование в сфере налогообложения природных ресурсов","+","-","Минфин России"]
["П.23.5.","Регулирование в сфере налогообложения доходов физических лиц","+","+","Минфин России,\nФНС России","Администрирование и контроль за правильностью исчисления, полнотой и своевременностью уплаты налога на доходы физических лиц","Регулирование в сфере налогообложения доходов физических лиц","Министерство финансов Камчатского края;\n\nМинистерство экономического развития Камчатского края;",null,null,null,"Министерство финансов Камчатского края;","Министерство экономического развития Камчатского края;"]
["П.23.6.","Регулирование в сфере налогообложения акцизами","+","-","Минфин России"]
["П.23.7.","Регулирование в сфере налогового администрирования","+","-","Минфин России"]
["П.23.8.","Регулирование в сфере страховых взносов",null,null,"Минфин России",null,null,null,null,{"$f":"IF(M12='список П.Х'!$F$3,\"Сформировать\",IF(N12 ='список П.Х'!$F$3,\"Сформировать\",IF(O12 ='список П.Х'!$F$3,\"Сформировать\",\"\")))","v":""}]
["П.23.9.","Администрирование и контроль за правильностью исчисления, полнотой и своевременностью уплаты страховых взносов на обязательное пенсионное, социальное и медицинское страхование",null,null,"\nФНС России",null,null,null,null,{"$f":"IF(M13='список П.Х'!$F$3,\"Сформировать\",IF(N13 ='список П.Х'!$F$3,\"Сформировать\",IF(O13 ='список П.Х'!$F$3,\"Сформировать\",\"\")))","v":""}]
["П.23.10.","Осуществление регистрации и учета налогоплательщиков ","+","-","ФНС России",null,null,"\n\n\n\n\n\n"]
["П.23.11.","Регулирование в сфере разработки налоговых стандартов, оформления и декларирования","+","-","ФНС России","Стандартизация в сфере налогообложения и контроль качества услуг; \nОказание услуг налогоплательщикам и конроль качества;  \nМеждународный автоматический обмен информацией с компетентными органами иностранных государств в сфере налогообложения"]
["П.23.12.","Осуществление налогового контроля","+","-","ФНС России","Стандартизация в сфере налогообложения и контроль качества услуг; \nОказание услуг налогоплательщикам и конроль качества;  \nВыездные налоговые проверки;                Досудебное урегулирование налоговых споров; \nНалоговый контроль в связи с осуществлением сделок между взаимозависимыми лицами; Международный обмен информацией с компетентными органами иностранных государств в сфере налогообложения; \nОперативный контроль; \nОсуществление налогового контроля посредством проведения камеральных проверок"]
["П.23.13.","Регулирование в сфере налогообложения доходов юридических лиц и индивидуальных предпринимателей","+","-","ФНС России"]
["П.23.14.","Администрирование системы учета состояния расчетов налогоплательщиков с бюджетом",null,null,"ФНС России",null,null,null,null,{"$f":"IF(M18='список П.Х'!$F$3,\"Сформировать\",IF(N18 ='список П.Х'!$F$3,\"Сформировать\",IF(O18 ='список П.Х'!$F$3,\"Сформировать\",\"\")))","v":""}]
["П.23.15.","Координация и методическое руководство правовой работы в налоговых органах",null,null,"ФНС России",null,null,null,null,{"$f":"IF(M19='список П.Х'!$F$3,\"Сформировать\",IF(N19 ='список П.Х'!$F$3,\"Сформировать\",IF(O19 ='список П.Х'!$F$3,\"Сформировать\",\"\")))","v":""}]
["П.23.16.","Международный автоматический обмен информацией с компетентными органами иностранных государств в сфере налогообложения",null,null,"ФНС России",null,null,null,null,{"$f":"IF(M20='список П.Х'!$F$3,\"Сформировать\",IF(N20 ='список П.Х'!$F$3,\"Сформировать\",IF(O20 ='список П.Х'!$F$3,\"Сформировать\",\"\")))","v":""}]
["П.23.17.","Взаимодействие с органами государственной власти иностранных государств и международными организациями в налоговой сфере",null,null,"ФНС России","Международное сотрудничество\nТехническое содействие иностранным государствам",null,null,null,{"$f":"IF(M21='список П.Х'!$F$3,\"Сформировать\",IF(N21 ='список П.Х'!$F$3,\"Сформировать\",IF(O21 ='список П.Х'!$F$3,\"Сформировать\",\"\")))","v":""}]
["П.23.18.","Администрирование вопросов анализа и прогнозирования поступлений налогов, сборов и страховых взносов \nв части осуществления аналитической деятельности",null,null,"ФНС России",null,null,"\n\n\n\n\n\n",null,{"$f":"IF(M22='список П.Х'!$F$3,\"Сформировать\",IF(N22 ='список П.Х'!$F$3,\"Сформировать\",IF(O22 ='список П.Х'!$F$3,\"Сформировать\",\"\")))","v":""}]
["П.23.19.","Автоматизация администрирования налога на профессиональный доход",null,null,"ФНС России",null,null,null,null,{"$f":"IF(M23='список П.Х'!$F$3,\"Сформировать\",IF(N23 ='список П.Х'!$F$3,\"Сформировать\",IF(O23 ='список П.Х'!$F$3,\"Сформировать\",\"\")))","v":""}]
["П.23.20.","Осуществление функций оператора Единого государственного реестра записей актов гражданского состояния (ФГИС \"ЕГР ЗАГС\")",null,null,"ФНС России",null,null,"Агентство записи актов гражданского состояния и архивного дела Камчатского края*;\n\nМинистерство цифрового развития Камчатского края**;\n",null,"*в части внесения сведений в ФГИС \"ЕГР ЗАГС\"\n**в части информационного взаимодействия по вопросам получения сведений из ФГИС \"ЕГР ЗАГС\"",null,"Агентство записи актов гражданского состояния и архивного дела Камчатского края;","Министерство цифрового развития Камчатского края;"]
["П.23.21.","Выполнение полномочий оператора федерального регистра сведений о населении (ФГИС \"ЕРН\")",null,null,"ФНС России",null,null,null,null,{"$f":"IF(M25='список П.Х'!$F$3,\"Сформировать\",IF(N25 ='список П.Х'!$F$3,\"Сформировать\",IF(O25 ='список П.Х'!$F$3,\"Сформировать\",\"\")))","v":""}]

{"sheet":"П.24","index":24,"n_rows":19,"n_cols":10,"rows_kept":19,"cut":false,"hidden":false,"merged":[[1,0,1,9]]}
[null,"<<< Назад"]
["П.24. Регулирование таможенной деятельности"]
[]
["Шифр вида профессиональной деятельности","Наименование вида профессиональной деятельности гражданских служащих","Наличие в ФГО","Наличие в ГО субъектов РФ","Наименования ФГО","Детализация вида профессиональной деятельности ФГО","Детализация вида профессиональной деятельности ГО субъектов РФ","Наименование ГО КК","Столбец1","Примечание"]
["П.24.1.","Регулирование в сфере таможенного администрирования","+","+","ФТС России,\nМинфин России"]
["П.24.2.","Контроль за осуществлением резидентами и нерезидентами валютных операций, связанных с перемещением товаров через таможенную границу Евразийского экономического союза, а также ввозом в Российскую Федерацию и вывозом из Российской Федерации товаров ","+","+"]
["П.24.3.","Обеспечение контроля товаров, содержащих объекты интеллектуальной собственности","+","+"]
["П.24.4.","Обеспечение соблюдения установленных запретов и ограничений в отношении товаров, ввозимых на таможенную территорию Евразийского экономического союза и в Российскую Федерацию и вывозимых с таможенной территории Евразийского экономического союза и из Российской Федерации","+","+"]
["П.24.5.","Администрирование вопросов правильности исчисления, полноты и своевременности уплаты таможенных платежей, а также предоставления льгот по уплате таможенных платежей","+","+"]
["П.24.6.","Регулирование в сфере классификации товаров по Товарной номенклатуре внешней экономической деятельности Евразийского экономического союза","+","+"]
["П.24.7.","Регулирование в сфере происхождения товаров и представления тарифных преференций","+","+"]
["П.24.8.","Система управления рисками ","+","+"]
["П.24.9.","Контроль таможенной стоимости товаров ","+","+"]
["П.24.10.","Анализ и контроль оборота подакцизных товаров","+","+"]
["П.24.11.","Противодействие незаконному обороту радиоактивных веществ, радиационных источников и ядерных материалов на государственной границе Российской Федерации","+","+"]
["П.24.12.","Осуществление кинологической деятельности","+","+"]
["П.24.13.","Ведение таможенной статистики внешней торговли и специальной таможеной статистики ","+","+"]
["П.24.14.","Регулирование в сфере экспертно-криминалистической деятельности, обеспечение организации и проведения таможенных экспертиз и исследований","+","+"]
["П.24.15.","Методическое обеспечение правоохранительной деятельности, проиводействия коррупции, обеспечения собственной безопасности","+","+"]

{"sheet":"П.25","index":25,"n_rows":22,"n_cols":14,"rows_kept":22,"cut":false,"hidden":false,"merged":[[1,0,1,9]]}
[null,"<<< Назад"]
["П.25. Регулирование экономики, деятельности хозяйствующих субъектов и предпринимательства"]
[]
["Шифр вида профессиональной деятельности","Наименование вида профессиональной деятельности гражданских служащих","Наличие в ФГО","Наличие в ГО субъектов РФ","Наименования ФГО","Детализация вида профессиональной деятельности ФГО","Детализация вида профессиональной деятельности ГО субъектов РФ","Наименование ГО КК","Наименование профессионального стандарта, знания и умения которого рекомендуется использовать при формировании квалификационных требований","Примечание"]
["П.25.1.","\nПроектное финансирование и инвестиционная политика","+","+","Минфин России",null,null,"Министерство экономического развития Камчатского края;\n\nМинистерство финансов Камчатского края;\n",null,null,null,"Министерство экономического развития Камчатского края;","Министерство финансов Камчатского края;"]
["П.25.2.","Прогнозирование социально-экономического развития Российской Федерации","+","+","Минфин России, Минэкономразвития России",null,"Обеспечение комплексного социально-экономического развития субъекта Российской Федерации","Министерство экономического развития Камчатского края;\n",null,null,null,"Министерство экономического развития Камчатского края;"]
["П.25.3.","Регулирование в сфере разработки государственных программ, проектов и документов стратегического планирования\n","+","+","Минфин России",null,null,"Администрация Губернатора Камчатского края (управление по национальным проектам и стратегической деятельности);\n\nВсе исполнительные органы Камчатского края*   \n",null,"*ИО, разрабатывающие государственные программы Камчатского края, региональные проекты",null,"Администрация Губернатора Камчатского края (управление по национальным проектам и стратегической деятельности);","Все исполнительные органы Камчатского края   "]
["П.25.4.","Разработка предложений по совершенствованию корпоративного законодательства","+","+","Минфин России",null,null,"Министерство имущественных и земельных отношений Камчатского края;\n",null,null,null,"Министерство имущественных и земельных отношений Камчатского края;"]
["П.25.5.","Регулирование экономики в сфере производства и оборота этилового спирта, алкогольной и спиртосодержащей продукции","+","+","Минфин России",null,null,"Министерство экономического развития Камчатского края;\n",null,null,null,"Министерство экономического развития Камчатского края;"]
["П.25.6.","Регулирование деятельности саморегулируемых организаций",null,null,"Минфин Росси",null,null,"\n\n\n\n\n\n"]
["П.25.7.","Регулирование экономики, регионального развития, деятельности хозяйствующих субъектов и предпринимательства","+","-","Минфин России\nРосреестр","Осуществление государственного надзора за деятельностью саморегулируемых организаций оценщиков, контроля (надзора) \nза деятельностью саморегулируемых организаций арбитражных управляющих, государственного надзора за деятельностью саморегулируемых организаций кадастровых инженеров, национального объединения саморегулируемых организаций кадастровых инженеров, федерального государственного надзора за деятельностью саморегулируемых организаций операторов электронных площадок», Ведение государственных реестров саморегулируемых организаций, государственных реестров членов саморегулируемых организаций\n",null,"Министерство экономического развития Камчатского края;\n\nВсе исполнительные органы Камчатского края**   \n",null,"**ИО, выполняющие функции по государственной поддержке деятельности хозяйствующих субъектов в Камчатском крае",null,"Министерство экономического развития Камчатского края;","Все исполнительные органы Камчатского края   "]
["П.25.8.","Обеспечение деятельности саморегулируемых организаций в области энергетического обследования","+","-","Минэнерго России","Обеспечение деятельности саморегулируемых организаций в области энергетического обследования",null,"\n\n\n\n\n\n"]
["П.25.9.","Развитие и осуществление государственной поддержки бизнеса и предпринимательства","+","+","Минэкономразвития России",null,null,"Министерство экономического развития Камчатского края;\n",null,null,null,"Министерство экономического развития Камчатского края;"]
["П.25.10.","Содействие экономическому развитию регионов","+","-","Минэкономразвития России","Осуществление территориального планирования экономики и размещения производственных сил\nРегулирование в сфере развития моногородов","Создание условий для устойчивого развития сельских территорий","Министерство сельского хозяйства, пищевой и перерабатывающей промышленности Камчатского края;\n\nМинистерство экономического развития Камчатского края;\n\nМинистерство транспорта и дорожного строительства Камчатского края;\n",null,null,null,"Министерство сельского хозяйства, пищевой и перерабатывающей промышленности Камчатского края;","Министерство экономического развития Камчатского края;","Министерство транспорта и дорожного строительства Камчатского края;"]
["П.25.11.","Оценка регулирующего воздействия","+","+","Минэкономразвития России",null,"Обеспечение деятельности по проведению оценки регулирующего воздействия и экспертизы нормативных правовых актов","Министерство экономического развития Камчатского края;\n",null,null,null,"Министерство экономического развития Камчатского края;"]
["П.25.12.","Развитие института государственно-частного партнерства","+","+","Минэкономразвития России",null,"Развитие экономических и финансовых механизмов государственно-частного партнерства ","Министерство экономического развития Камчатского края;\n",null,null,null,"Министерство экономического развития Камчатского края;"]
["П.25.13.","Регулирование в сфере государственных инвестиций и инвестиционной деятельности ","+","+","Минэкономразвития России,  ФАС,\nМинистерство Российской Федерации по развитию Дальнего Востока ","Обеспечение инвестиционной деятельности\nОбеспечение инвестиционной деятельности на территории субъектов Российской Федерации","Обеспечение инвестиционной деятельности","Министерство экономического развития Камчатского края;\n\nВсе исполнительные органы Камчатского края***   \n",null,"***ИО, занимающиеся привлечением инвестиций ",null,"Министерство экономического развития Камчатского края;","Все исполнительные органы Камчатского края   "]
["П.25.14.","Регулирование потребительского рынка и общественного питания ","+","-","Минпромторг России,\nРоспотребнадзор, ","Обеспечение защиты прав потребителей ","Содействие развитию торговой деятельности, разработка и реализация региональных программ развития торговли\nРегулирование в области развития потребительского рынка, государственного регулирования торговой деятельности на территории субъекта Российской Федерации\nУтверждение плана организации розничных рынков на территории субъекта Российской Федерации\nРазработка и реализация региональных программ развития торговли","Министерство экономического развития Камчатского края;\n",null,null,null,"Министерство экономического развития Камчатского края;"]
["П.25.15.","Развитие национальной системы аккредитации","+","-","Росаккредитация ","Регулирование национальной системы аккредитации",null,"\n\n\n\n\n\n"]
["П.25.16.","Обеспечение деятельности саморегулируемых организаций в сфере строительства ","+","+","Ростехнадзор","Осуществление государственного контроля и надзора в сфере саморегулируемых организаций в области  инженерных изысканий, архитектурно-строительного проектирования, строительства, реконструкции, капитального ремонта объектов капитального строительства",null,"Инспекция государственного строительного надзора Камчатского края;\n",null,null,null,"Инспекция государственного строительного надзора Камчатского края;"]
["П.25.17.","Регулирование в сфере объектов интеллектуальной собственности ","+","-","Роспатент",null,null,"\n\n\n\n\n\n"]
["П.25.18.","Регулирование контрактной системы","+","+","Минфин Росси",null,null,"Министерство финансов Камчатского края;\n\nВсе исполнительные органы Камчатского края   \n","Специалист в сфере закупок, \nЭксперт в сфере закупок ",null,null,"Министерство финансов Камчатского края;","Все исполнительные органы Камчатского края   "]

{"sheet":"П.26","index":26,"n_rows":12,"n_cols":13,"rows_kept":12,"cut":false,"hidden":false,"merged":[[1,0,1,9]]}
[null,"<<< Назад"]
["П.26. Регулирование имущественных отношений"]
[]
["Шифр вида профессиональной деятельности","Наименование вида профессиональной деятельности гражданских служащих","Наличие в ФГО","Наличие в ГО субъектов РФ","Наименования ФГО","Детализация вида профессиональной деятельности ФГО","Детализация вида профессиональной деятельности ГО субъектов РФ","Наименование ГО КК","Столбец1","Примечание"]
["П.26.1.","Осуществление корпоративного управления в компаниях с государственным участием","+","+","Росимущество","Регулирование отдельных вопросов финансово-хозяйственной деятельности акционерных обществ с государственным участием\nРегулирование отдельных вопросов финансово-хозяйственной деятельности акционерных обществ с государственным участием","Методологическое обеспечение корпоративного управления в компаниях с государственным участием\nАнализ финансово-хозяйственной деятельности государственных предприятий (учреждений) субъекта Российской Федерации и акционерных обществ, обществ с ограниченной ответственностью","Министерство имущественных и земельных отношений Камчатского края;\n\n",null,null,null,"Министерство имущественных и земельных отношений Камчатского края;"]
["П.26.2.","Управление, распоряжение и контроль за имуществом, находящимся в собственности Российской Федерации","+","+","Минфин России,\nРосимущество, Управление делами Президента Российской Федерации ","Управление, распоряжение и контроль за имуществом, находящимся в собственности субъета Российской Федерации\nУправление государственным имуществом, находящимся за рубежом\nВедение учета федерального имущества (ведение базы данных)\nАнализ инвестиционных рисков собственника в лице Российской Федерации;\nРазработка предложений по совершенствованию управления имуществом, находящимся в федеральной собственности, в том числе, совершенствованию планирования поступлений доходов в федеральный бюджет в виде прибыли, приходящейся на доли в уставных (складочных) капиталах хозяйственных товариществ и обществ, или дивидендов по акциям, принадлежащим Российской Федерации, и части прибыли федеральных государственных унитарных предприятий, подлежащей перечислению в федеральный бюджет ","Ведение государственной базы данных по учету федерального имущества в органе по управлению государственным имуществом субъекта Российской Федерации\nПредоставление государственных услуг в сфере управления и распоряжения имуществом","Министерство имущественных и земельных отношений Камчатского края;\n\nВсе исполнительные органы Камчатского края*   \n",null,"*ИО, в части координации и контроля деятельности подведомственных учреждений ",null,"Министерство имущественных и земельных отношений Камчатского края;","Все исполнительные органы Камчатского края   "]
["П.26.3.","Приватизация государственного имущества","+","+","Росимущество",null,null,"Министерство имущественных и земельных отношений Камчатского края;\n",null,null,null,"Министерство имущественных и земельных отношений Камчатского края;"]
["П.26.4.","Обеспечение размещения (предоставление помещений) федеральных органов власти и подведомственных им организаций","+","+","Росимущество","Обеспечение размещения (предоставление помещений) федеральных органов власти, органов власти субъектов Российской Федерации  и подведомственных им организаций",null,"Министерство имущественных и земельных отношений Камчатского края;\n",null,null,null,"Министерство имущественных и земельных отношений Камчатского края;"]
["П.26.5.","Организация реализации (утилизации) арестованного и конфискованного имущества","+","+","Росимущество","Обеспечение реализации, переработки (утилизации) и уничтожения государственного имущества\nОрганизация реализации арестованного, конфискованного, изъятого и иного имущества, обращенного в собственность государства"]
["П.26.6.","Организация сделок с государственным имуществом         \n","+","+","Росимущество","Организация купли-продажи, отчуждения и предоставления в безвозмездное пользование имущества, находящегося в федеральной собственности\nОрганизация сдачи федерального имущества в аренду и проведение торгов на право заключения договоров аренды\nОбеспечение передачи имущества религиозного назначения",null,"Министерство имущественных и земельных отношений Камчатского края;\n\n",null,null,null,"Министерство имущественных и земельных отношений Камчатского края;"]
["П.26.7.","Государственный кадастровый учет, государственная регистрация прав на недвижимое имущество, ведение Единого государственного реестра недвижимости и предоставление сведений, содержащихся в Едином государственном реестре недвижимости ","+","+","Росреестр ","Методическое обеспечение деятельности Росреестра, территориальных органов и подведомственных организаций по вопросам государственной регистрации прав на недвижимое имущество и сделок с ним, государственного кадастрового учета, предоставления сведений, содержащихся в Едином государственном реестре недвижимости (ЕГРН)\nПредоставление сведений из Единого государственного реестра недвижимости, государственная регистрация прав на недвижимость, государственный кадастровый учет объектов недвижимости\nПовышение качества сведений, содержащихся в Едином государственном реестре недвижимости, в том числе путем включения сведений о местоположении зданий, сооружений, объектов незавершенного строительства на земельных участках\nМежведомственное информационное взаимодействие при ведении Единого государственного реестра недвижимости.",null,"\n\n\n\n\n\n"]
["П.26.8.","Обеспечение условий проведения государственной кадастровой оценки и рассмотрения споров о результатах определения кадастровой стоимости","+","+","Росреестр ",null,null,"Министерство имущественных и земельных отношений Камчатского края;\n",null,null,null,"Министерство имущественных и земельных отношений Камчатского края;"]

{"sheet":"П.27","index":27,"n_rows":12,"n_cols":12,"rows_kept":12,"cut":false,"hidden":false,"merged":[[1,0,1,9]]}
[null,"<<< Назад"]
["П.27. Регулирование земельных отношений, геодезия и картография"]
[]
["Шифр вида профессиональной деятельности","Наименование вида профессиональной деятельности гражданских служащих","Наличие в ФГО","Наличие в ГО субъектов РФ","Наименования ФГО","Детализация вида профессиональной деятельности ФГО","Детализация вида профессиональной деятельности ГО субъектов РФ","Наименование ГО КК","Столбец1","Примечание"]
["П.27.1.","Управление в сфере геодезии и картографии, наименования географических объектов","+","-","Росреестр","Организация и обеспечение деятельности ведомственного картографо-геодезического фонда\nОбеспечение инфраструктуры пространственных данных\nОсуществление федерального картографо-геодезического учета\nРассмотрение споров о результатах определения кадастровой стоимости, организация работы комиссий по рассмотрению споров"]
["П.27.2.","Регулирование в сфере землеустройства и имущественно-земельных отношений","+","-","Росреестр","Верификация и гармонизация данных ЕГРП и ГКН, привязка ОКС к земельным участкам","Распоряжение земельными участками, расположенными на территории субъекта Российской Федерации","Министерство имущественных и земельных отношений Камчатского края;\n",null,null,null,"Министерство имущественных и земельных отношений Камчатского края;"]
["П.27.3.","Обеспечение кадастровой деятельности","+","+","Росреестр","Организация проведения независимой оценки начальной цены или начального размера арендной платы земельных участков\nМетодологическое обеспечение государственной кадастровой оценки","Осуществление государственной кадастровой оценки земельных участков \nМетодологическое обеспечение государственной кадастровой оценки\nРегулирование оценочной деятельности в отношении объектов оценки","Министерство имущественных и земельных отношений Камчатского края;\n\n",null,null,null,"Министерство имущественных и земельных отношений Камчатского края;"]
["П.27.4.","Федеральный государственный земельный контроль (надзор)      ","+","+","Росреестр","Организация деятельности кадастровых инженеров","Обеспечение проведения аттестации кадастровых инженеров","\n\n\n\n\n\n"]
["П.27.5.","Федеральный государственный контроль (надзор) в области геодезии и картографии, лицензирование в указанной сфере деятельности ","+","-","Росреестр"]
["П.27.6.","Государственный мониторинг земель (за исключением земель сельскохозяйственного назначения)","+","-","Росреестр"]
["П.27.7.","Осуществление государственного мониторинга земель        ","+","-","Минсельхоз России","Осуществление\nгосударственного мониторинга земель сельскохозяйственного назначения","Регулирование отношений в области оборота земельных участков и долей в праве общей собственности на земельные участки из земель сельскохозяйственного назначения","Министерство имущественных и земельных отношений Камчатского края;\n",null,null,null,"Министерство имущественных и земельных отношений Камчатского края;"]
["П.27.8.","Совершенствование земельного законодательства","+","+","Минфин России",null,null,"Министерство имущественных и земельных отношений Камчатского края;\n",null,null,null,"Министерство имущественных и земельных отношений Камчатского края;"]

{"sheet":"П.28","index":28,"n_rows":7,"n_cols":13,"rows_kept":7,"cut":false,"hidden":false,"merged":[[1,0,1,9]]}
[null,"<<< Назад"]
["П.28. Управление в сфере государственного материального резерва"]
[]
["Шифр вида профессиональной деятельности","Наименование вида профессиональной деятельности гражданских служащих","Наличие в ФГО","Наличие в ГО субъектов РФ","Наименования ФГО","Детализация вида профессиональной деятельности ФГО","Детализация вида профессиональной деятельности ГО субъектов РФ","Наименование ГО КК","Столбец1","Примечание"]
["П.28.1.","Организация формирования, размещения, хранения и обслуживания запасов материальных ценностей государственного материального резерва и контроль за их наличием\n","+","+","Росрезерв","Организация условий хранения государственного материального резерва материальных ценностей\nОбеспечение работ по количественной и качественной сохранности материальных ценностей государственного материального резерва\nВыпуск материальных ценностей из государственного резерва в порядке: освежения и замены, заимствования и разбронирования, обеспечения неотложных работ при ликвидации последствий чрезвычайных ситуаций, оказания гуманитарной помощи, оказание регулирующего воздействия на рынок, обеспечение мобилизационных нужд","Организация хранения и обслуживания запасов материальных ценностей государственного материального резерва","Министерство по чрезвычайным ситуациям Камчатского края;\n\nВсе исполнительные органы Камчатского края*  ",null,"*/**ИО, выполняющие функции государственного заказчика по закупке, размещению, хранению материальных ресурсов краевого резерва материальных ресурсов для ликвидации ЧС",null,"Министерство по чрезвычайным ситуациям Камчатского края;","Все исполнительные органы Камчатского края   "]
["П.28.2.","Осуществление закупок в государственный материальный резерв","+","+","Росрезерв","Осуществление функций государственного заказчика на поставку материальных ценностей в государственный резерв\n","Организация формирования и размещения ценностей государственного материального резерва","Все исполнительные органы Камчатского края**   ",null,null,null,"Все исполнительные органы Камчатского края   "]
["П.28.3.","Управление государственным имуществом в сфере  государственного материального резерва","+","+","Росрезерв"]

{"sheet":"П.29","index":29,"n_rows":21,"n_cols":12,"rows_kept":21,"cut":false,"hidden":false,"merged":[[1,0,1,9]]}
[null,"<<< Назад"]
["П.29. Антимонопольное регулирование"]
[]
["Шифр вида профессиональной деятельности","Наименование вида профессиональной деятельности гражданских служащих","Наличие в ФГО","Наличие в ГО субъектов РФ","Наименования ФГО","Детализация вида профессиональной деятельности ФГО","Детализация вида профессиональной деятельности ГО субъектов РФ","Наименование ГО КК","Столбец1","Примечание"]
["П.29.1.","Обеспечение соблюдения антимонопольного законодательства в сфере рекламы и средств массовой информации","+","+","ФАС России",null,null,"Администрация Губернатора Камчатского края (управление информационной политики);",null,null,null,"Администрация Губернатора Камчатского края (управление информационной политики);"]
["П.29.2.","Обеспечение соблюдения антимонопольного законодательства в сфере топливно-энергетического комплекса","+","-","ФАС России"]
["П.29.3.","Обеспечение соблюдения антимонопольного законодательства в сфере электроэнергетики","+","+","ФАС России",null,null,"Региональная служба по тарифам и ценам Камчатского края;\n",null,null,null,"Региональная служба по тарифам и ценам Камчатского края;"]
["П.29.4.","Обеспечение соблюдения антимонопольного законодательства в сфере финансовых рынков","+","-","ФАС России",null,null,"\n\n\n\n\n\n"]
["П.29.5.","Обеспечение соблюдения антимонопольного законодательства в сфере строительства","+","+","ФАС России",null,null,"Министерство строительства и жилищной политики Камчатского края;\n",null,null,null,"Министерство строительства и жилищной политики Камчатского края;"]
["П.29.6.","Обеспечение соблюдения антимонопольного законодательства в сфере торгов","+","-","ФАС России"]
["П.29.7.","Обеспечение соблюдения антимонопольного законодательства в сфере  жилищно-коммунального хозяйства","+","+","ФАС России",null,"Контроль за соблюдением законодательства Российской Федерации в сфере жилищно-коммунального хозяйства","Государственная жилищная инспекция Камчатского края;",null,null,null,"Государственная жилищная инспекция Камчатского края;"]
["П.29.8.","Обеспечение соблюдения антимонопольного законодательства в сфере связи","+","-","ФАС России"]
["П.29.9.","Обеспечение соблюдения антимонопольного законодательства в сфере информационных технологий","+","-","ФАС России"]
["П.29.10.","Обеспечение соблюдения антимонопольного законодательства в сфере транспорта","+","-","ФАС России",null,null,"Региональная служба по тарифам и ценам Камчатского края;\n",null,null,null,"Региональная служба по тарифам и ценам Камчатского края;"]
["П.29.11.","Обеспечение соблюдения антимонопольного законодательства в сфере промышленности и агропромышленного комплекса","+","+","ФАС России",null,"Контроль за соблюдением законодательства Российской Федерации в сфере агропромышленного комплекса","Министерство сельского хозяйства, пищевой и перерабатывающей промышленности Камчатского края;\n",null,null,null,"Министерство сельского хозяйства, пищевой и перерабатывающей промышленности Камчатского края;"]
["П.29.12.","Обеспечение соблюдения антимонопольного законодательства в социальной сфере","+","-","ФАС России","Обеспечение соблюдения антимонопольного законодательства в социальной сфере и в сфере непроизводственных услуг",null,"\n\n\n\n\n\n"]
["П.29.13.","Обеспечение соблюдения антимонопольного законодательства в сфере природных ресурсов",null,null,"ФАС России"]
["П.29.14.","Обеспечение соблюдения антимонопольного законодательства в части пресечения актов недобросовестной конкуренции",null,null,"ФАС России",null,null,"Все исполнительные органы Камчатского края   ",null,null,null,"Все исполнительные органы Камчатского края   "]
["П.29.15.","Обеспечение соблюдения антимонопольного законодательства в сфере выставочно-ярмарочной и конгрессной деятельности",null,null,"ФАС России",null,null,"Все исполнительные органы Камчатского края*   \n",null,"*ИО, реализующие программные мероприятия по организации выставочно-ярмарочной деятельности",null,"Все исполнительные органы Камчатского края   "]
["П.29.16","Обеспечение соблюдения антимонопольного законодательства в сфере здравоохранения",null,null,"ФАС России",null,null,"\n\n\n\n\n\n"]
["П.29.17","Обеспечение соблюдения антимонопольного законодательства в сфере промышленности",null,null,"ФАС России",null,null,"\n\n\n\n\n\n"]

{"sheet":"П.30","index":30,"n_rows":11,"n_cols":12,"rows_kept":11,"cut":false,"hidden":false,"merged":[[1,0,1,9]]}
[null,"<<< Назад"]
["П.30. Государственное ценовое (тарифное) регулирование"]
[]
["Шифр вида профессиональной деятельности","Наименование вида профессиональной деятельности гражданских служащих","Наличие в ФГО","Наличие в ГО субъектов РФ","Наименования ФГО","Детализация вида профессиональной деятельности ФГО","Детализация вида профессиональной деятельности ГО субъектов РФ","Наименование ГО КК","Наименование профессионального стандарта, знания и умения которого рекомендуется использовать при формировании квалификационных требований","Примечание"]
["П.30.1.","Государственное ценовое (тарифное) регулирование в сфере электроэнергетики","+","+","ФАС России",null,"Государственное ценовое (тарифное) регулирование в сфере электроэнергетики","Региональная служба по тарифам и ценам Камчатского края;\n",null,null,null,"Региональная служба по тарифам и ценам Камчатского края;"]
["П.30.2.","Государственное ценовое (тарифное) регулирование газовой и нефтяной отрасли","+","+","ФАС России",null,"Государственное ценовое (тарифное) регулирование в сфере газовой отрасли","Региональная служба по тарифам и ценам Камчатского края;\n",null,null,null,"Региональная служба по тарифам и ценам Камчатского края;"]
["П.30.3.","Государственное ценовое (тарифное) регулирование в сфере ядерно-топливной продукции","+","-","ФАС России",null,null,"\n\n\n\n\n\n"]
["П.30.4.","Государственное ценовое (тарифное) регулирование в социальной сфере","+","-","ФАС России","Государственное ценовое (тарифное) регулирование в социальной сфере (лекарственные препараты, медицинские изделия, отдельные виды продуктов питания) ","Государственное ценовое (тарифное) регулирование в социальной сфере\nГосударственное ценовое (тарифное) регулирование цен на лекарственные препараты для медицинского применения","Региональная служба по тарифам и ценам Камчатского края;",null,null,null,"Региональная служба по тарифам и ценам Камчатского края;"]
["П.30.5.","Государственное ценовое (тарифное) регулирование в сфере общедоступной электро- и почтовой связи","+","-","ФАС России"]
["П.30.6.","Государственное ценовое (тарифное) регулирование в сфере жилищно-коммунального комплекса","+","+","ФАС России",null,"Государственное ценовое (тарифное) регулирование в сфере жилищно-коммунального комплекса\nГосударственное ценовое (тарифное) регулирование в сфере теплоснабжения\nГосударственное ценовое (тарифное) регулирование в сфере водоснабжения и водоотведения\nГосударственное ценовое (тарифное) регулирование в сфере обращения с твердыми коммунальными отходами","Региональная служба по тарифам и ценам Камчатского края;","Специалист в области ценообразования и тарифного регулирования в жилищно-коммунальном хозяйстве",null,null,"Региональная служба по тарифам и ценам Камчатского края;"]
["П.30.7.","Государственное ценовое (тарифное) регулирование в транспортной сфере","+","+","ФАС России","Государственное ценовое (тарифное) регулирование в транспортной сфере\nГосударственное ценовое (тарифное) регулирование в сфере железнодорожного транспорта (пригородное сообщение)\nГосударственное ценовое (тарифное) регулирование в сфере инфраструктуры внутреннего водного транспорта\nГосударственное ценовое (тарифное) регулирование в сфере воздушного транспорта (на местных линиях)","Государственное ценовое (тарифное) регулирование в транспортной сфере\nГосударственное ценовое (тарифное) регулирование в сфере инфраструктуры внутреннего водного транспорта\nГосударственное ценовое (тарифное) регулирование в сфере воздушного транспорта (на местных линиях)","Региональная служба по тарифам и ценам Камчатского края;\n",null,null,null,"Региональная служба по тарифам и ценам Камчатского края;"]

{"sheet":"П.31","index":31,"n_rows":7,"n_cols":8,"rows_kept":7,"cut":false,"hidden":false,"merged":[[1,0,1,7]]}
[null,"<<< Назад"]
["П.31. Регулирование в сфере официального статистического учета"]
[]
["Шифр вида профессиональной деятельности","Наименование вида профессиональной деятельности гражданских служащих","Наименования ФГО","Детализация вида профессиональной деятельности ФГО","Детализация вида профессиональной деятельности ГО субъектов РФ","Наименование ГО КК","Столбец1","Примечание"]
["П.31.1.","Проведение федеральных статистических наблюдений и формирование на их основе официальной статистической информации","Росстат ","Разработка официальной статистической методологии, форм федерального статистического наблюдения и указаний по их заполнению и представлению;                                                                              сбор, обработка, первичных статистических и административных данных с целью формирования официальной статистической информации и её представление Президенту Российской Федерации, Правительству Российской Федерации, Федеральному Собранию Российской Федерации, иным органам государственной власти, органам местного самоуправления, средствам массовой информации, организациям и гражданам, а также международным организациям. ",null,"\n\n\n\n\n\n"]
["П.31.2.","Составление национальных счетов","Росстат ","Разработка методологии составления национальных счетов; составление национальных счетов, включая таблицы \"затраты-выпуск\""]
["П.31.3.","Проведение Всероссийской переписи населения и Всероссийской сельскохозяйственной переписи","Росстат ","Разработка методологии переписей, включая  программу переписей, систему показателей и формы бланков переписных листов, технологического инструментария сбора и обработки информации; обработка материалов переписи, формирование итогов переписей и их официальное опубликование"]

{"sheet":"П.32","index":32,"n_rows":7,"n_cols":13,"rows_kept":7,"cut":false,"hidden":false,"merged":[[1,0,1,9]]}
[null,"<<< Назад"]
["П.32. Управление в сфере архивного дела и делопроизводства "]
[]
["Шифр вида профессиональной деятельности","Наименование вида профессиональной деятельности гражданских служащих","Наличие в ФГО","Наличие в ГО субъектов РФ","Наименования ФГО","Детализация вида профессиональной деятельности ФГО","Детализация вида профессиональной деятельности ГО субъектов РФ","Наименование ГО КК","Наименование профессионального стандарта, знания и умения которого рекомендуется использовать при формировании квалификационных требований","Примечание"]
["П.32.1.","Обеспечение сохранности и государственный учет документов","+","+","Росархив",null,null,"Агентство записи актов гражданского состояния и архивного дела Камчатского края;",null,null,null,"Агентство записи актов гражданского состояния и архивного дела Камчатского края;"]
["П.32.2.","Организация использования и публикации архивных документов","+","+","Росархив",null,null,"Агентство записи актов гражданского состояния и архивного дела Камчатского края;",null,null,null,"Агентство записи актов гражданского состояния и архивного дела Камчатского края;"]
["П.32.3.","Комплектование и документационное обеспечение управления","+","+","Росархив",null,null,"Все исполнительные органы Камчатского края   \n\nАдминистрация Губернатора Камчатского края (управление секретариата);","Специалист по управлению документацией организации, Специалист по организационному и документационному обеспечению управления организацией ",null,null,"Все исполнительные органы Камчатского края   ","Администрация Губернатора Камчатского края (управление секретариата);"]

{"sheet":"справочник","index":33,"n_rows":47,"n_cols":1,"rows_kept":47,"cut":false,"hidden":false,"merged":[]}
["Все исполнительные органы Камчатского края   "]
["Агентство записи актов гражданского состояния и архивного дела Камчатского края;"]
["Агентство по обеспечению деятельности мировых судей Камчатского края (аппарат мирового судьи);"]
["Агентство лесного хозяйства Камчатского края;"]
["Администрация Губернатора Камчатского края (отдел по мобилизационной работе);"]
["Администрация Губернатора Камчатского края (отдел обеспечения деятельности комиссии по делам несовершеннолетних и защите их прав);"]
["Администрация Губернатора Камчатского края (отдел защиты информации и государственной тайны);"]
["Администрация Губернатора Камчатского края (управление по работе с обращениями граждан);"]
["Администрация Губернатора Камчатского края (Главное контрольное управление);"]
["Администрация Губернатора Камчатского края (Главное правовое управление);"]
["Администрация Губернатора Камчатского края (Главное управление государственной службы);"]
["Администрация Губернатора Камчатского края (отдел специальной документальной связи);"]
["Администрация Губернатора Камчатского края (управление протокола и внешних связей);"]
["Администрация Губернатора Камчатского края (управление секретариата);"]
["Администрация Губернатора Камчатского края (управление делами);"]
["Администрация Губернатора Камчатского края (отдел по профилактике коррупционных и иных правонарушений);"]
["Администрация Губернатора Камчатского края (управление по национальным проектам и стратегической деятельности);"]
["Администрация Губернатора Камчатского края (отдел общественной безопасности);"]
["Администрация Губернатора Камчатского края (управление информационной политики);"]
["Государственная жилищная инспекция Камчатского края;"]
["Служба охраны объектов культурного наследия Камчатского края;"]
["Инспекция государственного строительного надзора Камчатского края;"]
["Региональная служба по тарифам и ценам Камчатского края;"]
["Министерство развития гражданского общества и молодежи Камчатского края;"]
["Министерство туризма Камчатского края;"]
["Министерство труда и развития кадрового потенциала Камчатского края;"]
["Министерство цифрового развития Камчатского края;"]
["Министерство экономического развития Камчатского края;"]
["Министерство имущественных и земельных отношений Камчатского края;"]
["Министерство культуры Камчатского края;"]
["Министерство образования Камчатского края;"]
["Министерство природных ресурсов и экологии Камчатского края;"]
["Министерство рыбного хозяйства Камчатского края;"]
["Министерство сельского хозяйства, пищевой и перерабатывающей промышленности Камчатского края;"]
["Министерство социального благополучия и семейной политики Камчатского края;"]
["Министерство по чрезвычайным ситуациям Камчатского края;"]
["Министерство спорта Камчатского края;"]
["Министерство строительства и жилищной политики Камчатского края;"]
["Министерство по делам местного самоуправления и развитию Корякского округа Камчатского края;"]
["Министерство транспорта и дорожного строительства Камчатского края;"]
["Министерство жилищно-коммунального хозяйства и энергетики Камчатского края;"]
["Министерство здравоохранения Камчатского края;"]
["Министерство финансов Камчатского края;"]
["Аппарат Контрольно-счетной палаты Камчатского края;"]
["Аппарат Законодательного Собрания Камчатского края;"]
["Аппарат Избирательной комиссии Камчатского края;"]
["Аппараты территориальных избирательных комиссий в Камчатском крае"]